Workbook

Sheet Cover Page
D1: Add company logo
N2: Version 23.4a (for incinerators) - 15/11/2023
N4: Note that there is another version of this template available for co-incinerators
B8: Add photo
N13: Notes:
N14: This template may require adjustments by individual operators to meet specific reporting requirements as defined in the site Permit(s)
B29: Annual Performance Report 2023
B31: Permit EPR/NP3738SY
B33: SELCHP
B35: South East London Combined Heat and Power
B37: Veolia SELCHP Ltd
B39: Year: | C39: 2023
B41: Address: | C41: The Kennels Site, Landmann Way, Lewisham
B43: Tel: | C43: 02035676100
B45: Email: | C45: enquiries@selchp.com
B47: Prepared by: | C47: Ellen Raymond | F47: Position: | G47: Environmental Engineer (ERF)
B49: Approved by: | C49: Husain Suwasrawala | F49: Position: | G49: General Manager
B51: Version: | C51: 1
B53: Issue Date: | C53: 2023-01-24

Sheet Contents
A1: =+'Cover Page'!$B$29 -> Annual Performance Report 2023 | E1: =+'Cover Page'!$B$33 -> SELCHP
A3: Contents
A4: Section | B4: Subject | H4: Page
B5: Facility Information | H5: 3
B6: Operational Data | H6: 4
B7: Operational Summary | H7: 6
B8: Performance Form 1 | H8: 7
B9: Energy Form 1 | H9: 8
B10: Permit Compliance | H10: 9
B11: Improvements | H11: 10
B12: Public Liasion | H12: 11
B13: Carbon dioxide and nitrous oxide emissions | H13: 12
B14: Residue Quality | H14: 14
B15: Emissions to Water | H15: 15
B16: Emissions to Air (periodically monitored) | H16: 16
B17: Emissions to Air (continuously monitored) | H17: 17
B18: Hydrogen Chloride emissions | H18: 18
B19: Sulphur Dioxdie emsissions | H19: 19
B20: Oxides of Notrigen emissions | H20: 20
B21: Total Organic Carbon emissions | H21: 21
B22: Particulate Matter emissions | H22: 22
B23: Carbon Monoxide emissions | H23: 24
B24: Ammonia emissions | H24: 25
A27: Version Control
A28: Section | B28: Information | H28: Date
A35: Distribution
A36: Copy | B36: Name, Role | H36: No.
A45: This report is required under the Industrial Emissions Directive’s Article 55(2) requirements on reporting and public information on waste incineration plants and co-incineration plants, which require the operator to produce an annual report on the functioning and monitoring of the plant and make it available to the public.

Sheet Facility Info
A1: =+'Cover Page'!$B$29 -> Annual Performance Report 2023 | E1: =+'Cover Page'!$B$33 -> SELCHP
A3: Plant Description and Design | K3: Notes:
A5: In 1986, faced with the increasing scarcity and environmental problems of landfill, the London Boroughs of Lewisham, Southwark and Greenwich came together to search for a realistic alternative. In 1988, they formed a Consortium - South East London Combined Heat and Power - from which SELCHP, Energy Recovery Facility (ERF), now takes its name. The facility recovers heat energy from the combustion of non-hazardous waste to raise steam, to generate electricity from a steam turbine which is then exported to the National Grid. Residual steam from the process is used to heat a district heating network, which supplies heat for domestic heating and hot water to local residents. Strict environmental controls and proven operating experience ensure that SELCHP remains consistently compliant with environmental permitting regulations. Technical details of the plant: Two boilers supply steam to one common turbine Maximum Permitted Refuse throughput – 464,000 tonnes per annum (29 tonnes per hour per boiler) Number of tipping bays – 11 Steam output – 38 tonnes of steam per hour at 395°C and 46 bar Flue gas treatment – Selective Non-Catalytic Reduction (SNCR) DeNOx, activated carbon injection, semi-wet lime scrubber and high performance bag filters system, discharging into a 100 metre high chimney Electrical Generation Capacity – 35MWe and a District Heating potential capacity of 40MWth | K5: Include summary of plant design, design capacity, no. of combustion lines, electrical and heat capacity and any other general information that descibes the facility, its location and purpose
A20: Summary of Operational Processes and Procedures
A22: The main purpose of the activity at SELCHP is to burn non-hazardous municipal waste and to recover energy in the form of steam for both; the export of heat via a district heating network and as electricity for export to the national grid. SELCHP is a consortium of Local Authorities and private enterprise that operates a 464,000 tonne per year, mass burn, municipal waste incinerator in Deptford in the London Borough of Lewisham. Waste is delivered both; directly to site by refuse collection vehicles and various other waste vehicles. Waste delivered to site is discharged into the waste storage bunker. Oversized and unsuitable wastes are rejected and removed. The waste is then charged into one of two furnaces by dedicated grab cranes. Hydraulic ram feeders control the charging rate of the waste to the furnace grate. Waste is burnt on a reverse acting stoker grate with combustion air supplied in a controlled manner to ensure efficient combustion. The production on Oxides of Nitrogen (NOx) by combustion is mitigated by the injection of ammonia solution into the furnace by a process of Selective Non-Catalytic Reduction (SNCR). Bottom ash from the grate is quenched in a water bath to prevent the release of dust and provide a gas seal, at the ash discharger outlet. Ferrous metal is recovered from the ash by a drum magnet. Residual ash is recovered and sent to a recycling facility in Greenwich, London. The hot gases from the combustion process are passed through a boiler to raise steam, which is then forwarded to a steam turbine to generate up to 32 MW of electricity for export to the national grid. Excess steam, of too low an enthalpy to generate electricity, is taken off the turbine, allowing for the export of heat via the District Heating network to local residents. This heat would otherwise be lost to atmosphere,as waste heat, via the Air Cooled Condenser (ACC). Exhaust gasses from the boiler are sent to the flue gas treatment plant. Firstly activated carbon is injected to adsorb mercury, heavy metals, dioxins and dioxin like compounds. Secondly, a semi-dry lime scrubbing plant removes acid gasses, predominantly hydrogen chloride (HCl) and sulphur dioxide (SO2). Lastly, the flue gases pass through a series of bad filters to control particulate emissions. The cleaned gasses are discharged from a 100 meter, twin flue (one for each furnace) chimney. SELCHP operates an Environmental Management system accredited to ISO 14001. There are no European sites within 10 km. Air dispersion modeling has established that the site has minimal impact on sites of special scientific interest (SSSI) within that radius. All emissions from the plant have been modelled, demonstrating that it is unlikely to have a significant impact on local air quality, due to it urban setting. There are no releases to controlled waters as part of the process. Process effluents are reused within the process. Residual effluents are released to sewer as trade effluent. A Household, commercial and industrial waste transfer station may also be operated within the permit boundary, under conditions set out in ‘Standard Rules Permit SR2008No1’ when required. | K22: Include summary of key processes and procedures such as (but not limited to); waste reception, control rooms, grate, bed and bolier, energy & heat generation, cooling systems, residue management, emission controls, health and safety systems, maintenance

Sheet Operational Data
A1: =+'Cover Page'!$B$29 -> Annual Performance Report 2023 | E1: =+'Cover Page'!$B$33 -> SELCHP
A3: Operational Data
A4: Plant Size | B4: 464000 | D4: tonnes pa | E4: 30 | F4: MWth | G4: 30 | H4: MWe | J4: Notes:
A5: No. of combustion lines | B5: 2 | D5: No. of Turbines: | F5: 1 | J5: * - RDF to include SRF
J6: ** - Combusted tonnage = tonnes delivered in period + (tonnes in bunker at start of period – tonnes in bunker at end of period), or equivalent calculation depending on plant type
A7: Waste types received | B7: Unit | C7: Q1 | D7: Q2 | E7: Q3 | F7: Q4 | G7: Year Total | H7: %
A8: Household / Local Authority | B8: tonnes | C8: 87210.98 | D8: 96779.52 | E8: 68226.34 | F8: 99613.31 | G8: =SUM(C8:F8) -> 351830.15 | H8: =IF(G8>0,G8/$G$18,"-") -> 0.8978638516
A9: Commercial & Industrial | C9: 46.94 | D9: 31.6 | E9: 362.28 | F9: 38.9 | G9: =SUM(C9:F9) -> 479.72 | H9: 0.001224236317 | J9: *** - CHP plants only
A10: Hazardous | C10: - | D10: - | E10: - | F10: - | G10: 0 | H10: - | J10: **** Availability Definition: 'the availability of a line is to be calculated by the number of hours the line reported Continuously Monitored emission levels to the Regulator through the calendar year divided by the total number of hours in that year. The overall plant availability is calculated as the Mean of all lines in the plant. For clarity this includes periods of abnormal operation.' Rationale: The primary function of an Energy from Waste facility is the disposal of waste. It follows therefore that the availability of a plant is determined by the period of time a facility spends undertaking this activity.
A11: Clinical | C11: 23.3 | D11: 24.7 | E11: 17.24 | F11: 23.46 | G11: 88.7 | H11: 0.0002263607131
A12: Waste wood (biomass) | C12: - | D12: - | E12: - | F12: - | G12: 0 | H12: -
A13: Refuse Derived Fuel * - H'hold/LA | C13: - | D13: - | E13: - | F13: - | G13: =SUM(C13:F13) -> 0 | H13: -
A14: Refuse Derived Fuel * - C&I | C14: - | D14: - | E14: - | F14: - | G14: 0 | H14: -
A15: MRF Residue | C15: 10560.44 | D15: 11390.4 | E15: 6494.86 | F15: 11008.18 | G15: 39453.88 | H15: 0.1006855514
A16: Other [Please specify] | C16: - | D16: - | E16: - | F16: - | G16: 0 | H16: -
A17: Other [Please specify] | C17: - | D17: - | E17: - | F17: - | G17: 0 | H17: -
A18: Total waste received | C18: =SUM(C8:C17) -> 97841.66 | D18: =SUM(D8:D17) -> 108226.22 | E18: =SUM(E8:E17) -> 75100.72 | F18: =SUM(F8:F17) -> 110683.85 | G18: 391852.45
A19: Rejected Waste | C19: 9.96 | D19: 0.18 | E19: 0 | F19: 14.38 | G19: =SUM(C19:F19) -> 24.52 | H19: =IF(G19>0,G19/$G$18,"-") -> 6.257457367e-05
A20: Unprocessed waste transferred out | C20: - | D20: - | E20: 684.84 | F20: - | G20: =SUM(C20:F20) -> 684.84 | H20: =IF(G20>0,G20/$G$18,"-") -> 0.001747698655
A21: Total waste combusted ** | C21: 97631.56 | D21: 106141.9 | E21: 74756.87 | F21: 112473.2 | G21: =SUM(C21:F21) -> 391003.53
J22: Password for protected cells A password has been set to prevent accidental editing of cells with formulae. If you still need to make an edit for some reason then the password = 1234
A23: Energy Usage / Export | B23: Unit | C23: Q1 | D23: Q2 | E23: Q3 | F23: Q4 | G23: Year Total | H23: KWh/te
A24: Power Generated | B24: MWh | C24: 59234.2 | D24: 65019.97 | E24: 46819.4 | F24: 65860.9 | G24: =SUM(C24:F24) -> 236934.47 | H24: =IF(G24>0,G24*1000/$G$21,"-") -> 605.9650408
A25: Power Exported | C25: 52326.21 | D25: 57176.88 | E25: 40707.28 | F25: 58198.54 | G25: =SUM(C25:F25) -> 208408.91 | H25: =IF(G25>0,G25*1000/$G$21,"-") -> 533.010303
A26: Power Used on site | C26: 6907.99 | D26: 7843.09 | E26: 6198.16 | F26: 7989.8 | G26: =SUM(C26:F26) -> 28939.04 | H26: =IF(G26>0,G26*1000/$G$21,"-") -> 74.01222183
A27: Power Imported | C27: 191.19 | D27: 181.36 | E27: 30.15 | F27: 341.68 | G27: 744.38 | H27: =IF(G27>0,G27*1000/$G$21,"-") -> 1.903767979
A28: Parasitic Load | B28: % | C28: =IF(C24>0,1-C25/(C24+C27),"-") -> 0.1194637511 | D28: =IF(D24>0,1-D25/(D24+D27),"-") -> 0.123071876 | E28: =IF(E24>0,1-E25/(E24+E27),"-") -> 0.1311062753 | F28: =IF(F24>0,1-F25/(F24+F27),"-") -> 0.1209022367 | G28: =IF(G24>0,1-G25/(G24+G27),"-") -> 0.1231491149
A29: Thermal Energy Produced *** | B29: MWh | C29: - | D29: - | E29: - | F29: - | G29: =SUM(C29:F29) -> 0 | H29: =IF(G29>0,G29*1000/$G$21,"-") -> -
A30: Thermal Energy Exported *** | C30: 15117.84 | D30: 9624.23 | E30: 3973.4 | F30: 13316.48 | G30: 42031.95 | H30: =IF(G30>0,G30*1000/$G$21,"-") -> 107.4976228
A31: R1 value (if applicable) | B31: R1 | G31: 0.68
A33: Waste Disposal & Recovery | B33: Unit | C33: Q1 | D33: Q2 | E33: Q3 | F33: Q4 | G33: Year Total | H33: % inputs
A34: APC Residues - produced | B34: tonnes | C34: 2467.75 | D34: 2681.62 | E34: 1959 | F34: 2801.82 | G34: =SUM(C34:F34) -> 9910.19 | H34: =IF(G34>0,G34/$G$21,"-") -> 0.02534552565
A35: IBA - produced | C35: 18275.1 | D35: 21565.44 | E35: 15147.48 | F35: 19966.68 | G35: 74954.7 | H35: =IF(G35>0,G35/$G$21,"-") -> 0.1916982693
A36: Metals recycling | C36: 1182.2 | D36: 764.98 | E36: 1054.38 | F36: 1198.54 | G36: =SUM(C36:F36) -> 4200.1 | H36: 0.01074184676
A37: Other | C37: 0 | D37: 0 | E37: 0 | F37: 0 | G37: =SUM(C37:F37) -> 0 | H37: -
A38: Other | C38: 0 | D38: 0 | E38: 0 | F38: 0 | G38: 0 | H38: -
A39: Other | C39: 0 | D39: 0 | E39: 0 | F39: 0 | G39: 0 | H39: -
A41: Raw Material Usage | B41: Unit | C41: Q1 | D41: Q2 | E41: Q3 | F41: Q4 | G41: Year Total | H41: kg or Ltr /te
A42: Mains Water | B42: ltrs | C42: 30285530 | D42: 59002570 | E42: 54531900 | F42: 48955000 | G42: =SUM(C42:F42) -> 192775000 | H42: =IF(G42>0,G42/$G$21,"-") -> 493.0262394
A43: Other Water | B43: ltrs | C43: - | D43: - | E43: - | F43: - | G43: 0 | H43: =IF(G43>0,G43/$G$21,"-") -> -
A44: Ammonia | B44: kgs | C44: 328300 | D44: 369920 | E44: 296100 | F44: 411590 | G44: 1405910 | H44: 3.595645287
A45: Urea | B45: kgs | C45: - | D45: - | E45: - | F45: - | G45: =SUM(C45:F45) -> 0 | H45: -
A46: Activated Carbon | B46: kgs | C46: 21350 | D46: 25900 | E46: 17840 | F46: 23000 | G46: 88090 | H46: 0.2252920837
A47: Lime / hydrated lime | B47: kgs | C47: 798680 | D47: 888960 | E47: 609440 | F47: 900300 | G47: 3197380 | H47: 8.177368629
A48: Fuel oil | B48: ltrs | C48: 107399 | D48: 223547.72 | E48: 140503 | F48: 255870 | G48: 727319.72 | H48: 1.860135943
A49: Gas | B49: cuf | C49: - | D49: - | E49: - | F49: - | G49: 0
A50: Other | C50: - | D50: - | E50: - | F50: - | G50: 0
A52: Summary | B52: Line/Unit | C52: Q1 | D52: Q2 | E52: Q3 | F52: Q4 | G52: Year Total | I52: Hrs in year
A53: Availability of waste combustion by line, hrs **** | B53: 1 | C53: 1944.88 | D53: 2048.75 | E53: 1458.03 | F53: 2113.88 | G53: =SUM(C53:F53) -> 7565.54 | H53: =+G53/$I$53 -> 0.8636461187 | I53: 8760
B54: 2 | C54: 1700.52 | D54: 1953.75 | E54: 1397.95 | F54: 2034.47 | G54: =SUM(C54:F54) -> 7086.69 | H54: =+G54/$I$53 -> 0.8089828767
B55: 4 | C55: 0 | D55: 0 | E55: 0 | F55: 0 | G55: =SUM(C55:F55) -> 0 | H55: 0
B56: 5 | C56: 0 | D56: 0 | E56: 0 | F56: 0 | G56: =SUM(C56:F56) -> 0 | H56: 0
A57: Overall Availability, mean avg. of all lines, hrs | C57: 1822.7 | D57: 2001.25 | E57: 1427.99 | F57: 2074.175 | G57: =SUM(C57:F57) -> 7326.115 | H57: 0.8363144977
A58: Hours of turbine operations, hrs | B58: 1 | C58: 2013.67 | D58: 2105.17 | E58: 1573.03 | F58: 2094.33 | G58: =SUM(C58:F58) -> 7786.2 | H58: 0.8888356164
A59: Hours of turbine operations, hrs | B59: 2 | C59: 0 | D59: 0 | E59: 0 | F59: 0 | G59: 0 | H59: 0
A60: Hours of heat / steam export | C60: 0 | D60: 0 | E60: 0 | F60: 0 | G60: 0 | H60: =IF(B60>0,G59/I53,"n/a") -> n/a
A61: Net Calorific Value of waste | B61: MJ/kg | C61: 9.36067 | D61: 9.361 | E61: 9.42033 | F61: 9.175 | G61: =AVERAGE(C61:F61) -> 9.32925
A62: Abnormal Events | B62: qty. | C62: 0 | D62: 0 | E62: 0 | F62: 0 | G62: 0 | H62: =IF(G62>0,"yes","no") -> no
A63: Abnormal operation | B63: hours | C63: 0 | D63: 0 | E63: 0 | F63: 0 | G63: 0 | H63: =+(G63)/I53 -> 0
A64: Permit Breaches | B64: qty. | C64: 0 | D64: 0 | E64: 0 | F64: 0 | G64: 0 | H64: =IF(G64>0,"yes","no") -> no

Sheet Operational Summary
A1: =+'Cover Page'!$B$29 -> Annual Performance Report 2023 | E1: =+'Cover Page'!$B$33 -> SELCHP
A3: Summary of Plant Operations and Maintenance during the reporting year
A5: Overall plant availability for 2023 was 83.6%, a significant decrease compared to 2022. This was due to the MET Police enforced shutdown in January to allow for a Police investigation and delayed return to service of the station following the annual maintenance shutdown. Boiler 1: In addition to January's enforced shutdown and delayed outage in September, the boiler suffered multiple grate breakdowns in March, April, June and August due to NOx cannister explosions. Boiler 2: In addition to January's enforced shutdown and delayed outage in September, the boiler suffered multiple grate breakdowns in April, May, June, August and November. The annual outage ran from the 05/09/23 to the 03/10/2023 for boiler 1 and from the 02/09/23 to the 3/10/2023 for boiler 2.
A29: Summary of Residue Handling for the reporting year
A31: All incinerator bottom ash is loaded to tipper trucks by excavators and sent for reprocessing at a dedicated and permitted facility in Charlton, London (Recycling code R4). Where the majority of ferrous and non-ferrous metals are extracted for sale to the metals traders. Residual aggregates are sold for use in the a range of permissible construction projects. Air pollution control residue, transported as a powder and loaded into road tankers, is predominantly sent to Veolia Empire Works, Walsall for treatment with waste industrial sulphuric/phosphoric acid and disposal to landfill (Disposal code D9). The remainder was sent to a deep storage facility (disposal code D12). Ferrous metal separated from the IBA is sold to and collected by reputable scrap metal traders. In 2023, less ferrous metal was reocovered directly from IBA on site in due to the ACME magnet failures.

Sheet Perf. Form 1
A1: =+'Cover Page'!C39 -> 2023 | B1: Annual Reporting Performance Form 1
A3: =+'Cover Page'!B31 -> Permit EPR/NP3738SY | F3: Operator: | G3: Veolia SELCHP Ltd
A4: Facility: | B4: =+'Cover Page'!B33:I33 -> SELCHP | F4: Form: | G4: Performance 1
A6: Reporting Period from: | D6: 2023-01-01 | F6: to: | G6: 2023-12-31
A8: =+A1 -> 2023 | B8: Annual Reporting of Waste Disposal and Recovery
A9: Waste Description | C9: Disposal Route(s) | E9: Disposal Tonnes | G9: Recovery Tonnes | I9: % / tonne of waste incinerated
A10: 1) Hazardous Wastes
A11: APC Residues | C11: 2 | E11: ='Operational Data'!G34 -> 9910.19 | G11: 0 | I11: =IF((E11+G11)>0,(E11+G11)/'Operational Data'!$G$21, "-") -> 0.02534552565
A12: IBA | C12: 0 | E12: 0 | G12: 0 | I12: =IF((E12+G12)>0,(E12+G12)/'Operational Data'!$G$21, "-") -> -
I13: =IF((E13+G13)>0,(E13+G13)/'Operational Data'!$G$21, "-") -> -
I14: =IF((E14+G14)>0,(E14+G14)/'Operational Data'!$G$21, "-") -> -
A15: Total Hazardous Waste | E15: =SUM(E11:F14) -> 9910.19 | G15: =SUM(G11:H14) -> 0 | I15: =IF((E15+G15)>0,(E15+G15)/'Operational Data'!$G$21, "-") -> 0.02534552565
A17: 2) Non-Hazardous Wastes
A18: IBA | C18: 1 | E18: 0 | G18: ='Operational Data'!G35 -> 74954.7 | I18: =IF((E18+G18)>0,(E18+G18)/'Operational Data'!$G$21, "-") -> 0.1916982693
A19: Ferrous Metal | C19: 2 | E19: 0 | G19: ='Operational Data'!G36 -> 4200.1 | I19: =IF((E19+G19)>0,(E19+G19)/'Operational Data'!$G$21, "-") -> 0.01074184676
A20: Process Water | I20: =IF((E20+G20)>0,(E20+G20)/'Operational Data'!$G$21, "-") -> -
I21: =IF((E21+G21)>0,(E21+G21)/'Operational Data'!$G$21, "-") -> -
I22: =IF((E22+G22)>0,(E22+G22)/'Operational Data'!$G$21, "-") -> -
A23: Total Non-Hazardous Waste | E23: =SUM(E18:F22) -> 0 | G23: =SUM(G18:H22) -> 79154.8 | I23: =IF((E23+G23)>0,(E23+G23)/'Operational Data'!$G$21, "-") -> 0.2024401161
A24: TOTAL WASTE | E24: =+E23+E15 -> 9910.19 | G24: =+G23+G15 -> 79154.8 | I24: =IF((E24+G24)>0,(E24+G24)/'Operational Data'!$G$21, "-") -> 0.2277856417
A26: Operator’s comments :
A31: =+A1 -> 2023 | B31: Annual Reporting of Water and Other Raw Material Usage
A32: Raw Material | E32: Usage | G32: Unit | H32: Specific Useage | J32: Unit
A33: Mains Water | E33: =+'Operational Data'!G42/1000 -> 192775 | G33: m3 | H33: =IF(E33>0,E33/'Operational Data'!$G$21,"-") -> 0.4930262394 | J33: m3/te
A34: Total Water | E34: =+'Operational Data'!G43+'Operational Data'!G42/1000 -> 192775 | G34: m3 | H34: =IF(E34>0,E34/'Operational Data'!$G$21,"-") -> 0.4930262394 | J34: m3/te
A35: Urea / Ammonia | E35: =+'Operational Data'!G44 -> 1405910 | G35: kg | H35: =IF(E35>0,E35/'Operational Data'!$G$21,"-") -> 3.595645287 | J35: kg/te
A36: Activated Carbon | E36: =+'Operational Data'!G46 -> 88090 | G36: kg | H36: =IF(E36>0,E36/'Operational Data'!$G$21,"-") -> 0.2252920837 | J36: kg/te
A37: Lime / hydrated lime / Sodium Bicarb. | E37: =+'Operational Data'!G47 -> 3197380 | G37: kg | H37: =IF(E37>0,E37/'Operational Data'!$G$21,"-") -> 8.177368629 | J37: kg/te
A39: Operator’s comments :
A43: =+A31 -> 2023 | B43: Annual Reporting of other performance indicators
A44: Parameter | C44: Results by Line
C45: A1 | D45: A2 | E45: A3 | F45: A4 | G45: A5 | I45: Turbine 1 | J45: Turbine 2
A46: Operating hours for the year, hours | C46: 7565.55 | D46: 7086.68 | I46: 7786.2
A47: Number of periods of abnormal operation, qty. | C47: 0 | D47: 0
A48: Cumulative hours of abnormal operation for this year, hours | C48: 0 | D48: 0
A50: Operator’s comments :
A54: Signed: | B54: E. Raymond | G54: Date: | H54: 2024-01-17

Sheet Energy Form 1
A1: =+'Cover Page'!C39 -> 2023 | B1: Annual Reporting of Energy Usage/Export
A3: =+'Cover Page'!B31 -> Permit EPR/NP3738SY | F3: Operator: | G3: Veolia SELCHP Ltd
A5: Facility: | B5: =+'Cover Page'!B33:I33 -> SELCHP | F5: Form: | G5: Energy 1
A7: Reporting Period from: | D7: =+'Perf. Form 1'!D6:E6 -> 2023-01-01 | F7: to: | G7: =+'Perf. Form 1'!G6:H6 -> 2023-12-31
A9: Energy Source | D9: Energy Usage | F9: Unit | G9: Specific Useage (KWh/tonne incinerated
A10: Electricity Produced | D10: =+'Operational Data'!G24 -> 236934.47 | F10: MWh | G10: =+'Operational Data'!H24 -> 605.9650408
A11: Electricity Imported | D11: =+'Operational Data'!G27 -> 744.38 | F11: MWh | G11: =+'Operational Data'!H27 -> 1.903767979
A12: Electricity Exported | D12: =+'Operational Data'!G25 -> 208408.91 | F12: MWh | G12: =+'Operational Data'!H25 -> 533.010303
A13: Gas Oil | D13: - | F13: tonnes
A14: Steam/hot water exported | D14: =+'Operational Data'!G30 -> 42031.95 | F14: GWh | G14: =+'Operational Data'!H30 -> 107.4976228
A18: Operator’s comments :
A19: Hot water export is dependent on demand (ambient temperature) not operational performance.
A28: Signed: | B28: E. Raymond | G28: Date: | H28: 2024-01-17

Sheet Permit Compliance
A1: =+'Cover Page'!$B$29 -> Annual Performance Report 2023 | E1: =+'Cover Page'!$B$33 -> SELCHP
A3: Summary of Permit Compliance
A5: Compliance with permit limits for continuously monitored pollutants
A7: The plant met its emission limits as shown in the table below:
A8: Substance | C8: Percentage time compliant during operationNote 1 | L8: Notes:
C9: Half-hourly limit | F9: Daily limit | L9: Note 1: Please report to 2 decimal places, i.e. xx.xx% Note 2: Please provide a brief summary of each notification or non-compliance in the table (rather than just referring to notifications that were sent to the Regulator), including stating the value of measured result for any ELV exceedances.
A10: Particulates | C10: 1 | F10: 1
A11: Oxides of nitrogen | C11: 1 | F11: 1
A12: Sulphur dioxide | C12: 1 | F12: 1
A13: Carbon monoxide | C13: 100% of 95% of 10-min averages | F13: 1
A14: Total organic carbon | C14: 1 | F14: 1
A15: Hydrogen chloride | C15: 1 | F15: 1
A16: Hydrogen fluoride | C16: 1 | F16: 1
A19: Summary of any notifications or non-compliances under the permit
A20: Date | B20: Summary of notification or non-compliance [including Line/Reference]Note 2 | E20: Reason | H20: Measures taken to prevent reoccurrence
A27: Summary of any complaints received and actions to taken to resolve them.
A28: Date | B28: Summary of complaint [including Line/Reference] | E28: Reason * | H28: Measures taken to prevent reoccurrence
A29: 2023-01-18 | B29: 114946 - Odour complaint from member of the public, communicated by the EA officer | E29: Police investigation, backloading of waste in the tipping hall. | H29: Removal of waste concluded on 20/01/2023
A30: 2023-03-09 | B30: 120746 - Noise complaint. Investigation completed, no noise detected from site. | E30: Other industrial site in surrounding area. | H30: N/A
A31: 2023-11-22 | B31: Odour complaint from member of the public, communicated by EA officer. Investigation completed, unsubstantiated | E31: Other industrial site in surrounding area. | H31: N/A
E34: * including whether substantiated by the operator or the EA

Sheet Improvements
A1: =+'Cover Page'!$B$29 -> Annual Performance Report 2023 | E1: =+'Cover Page'!$B$33 -> SELCHP
A3: Summary of Plant Improvements
A5: Summary of any efficiency improvements that have been completed within the year.
A6: In conjunction with Westminster city council, a private wire project was completed in 2023 to supply electrical power to charge the new EV refuse collection vehicles at a neighbouring vehicle depot. Transmission losses should be lower than supplying the same power to the national grid.
A16: Summary of any permit improvement conditions that have been completed within the year and the resulting environmental benefits.
A17: Permit improvement condition report IC1 and IC2/3 were submitted on 30/09/2023. IC1 outlines the results of a trial conducted on site to determine the extent to which the current systems in place at the plant to minimise NOx emissions can be further optimised such that emissions are reduced as far as possible below 180 mg/Nm3 as a daily average, without significantly increasing emissions of other pollutants or having a significant negative effect on plant operation, reliability or bottom ash quality. IC2/3 outlines that SELCHP has low and stable mercury and dioxin emissions, the report provides historic results for mercury and dioxins from bi-annual emission monitoring.
A27: Summary of any changes to the plant or operating techniques which required a variation to the permit and a summary of the resulting environmental impact.
A28: None
A38: Summary of any other improvements made to the plant or planned to be made and a summary of the resulting environmental benefits.
A39: There is a proposal to replace the CEMS instrumentation in 2024.

Sheet Public Liasion
A1: =+'Cover Page'!$B$29 -> Annual Performance Report 2023 | E1: =+'Cover Page'!$B$33 -> SELCHP
A3: Details of Public & Stakeholder Liasion
A5: Summary of events held during the reporting year.
A6: Date | C6: Description
A7: Various | C7: Site tours are laid on for internal and external stakeholders, as well as, higher education students. Tours are requested at selchp.com and are approved on a case by case basis.
A9: N/A | C9: Due to the annual outage commencing in September, it has not been possible to hold our annual open day as part of Open House London which is held during September.
A16: List of events planned for next year
A17: Date | C17: Description
A18: Various | C18: Site tours are laid on for internal and external stakeholders, as well as, higher education students. Tours are requested at selchp.com and are approved on a case by case basis.
A20: Unknown | C20: It is intended that an open day will be held in 2024.
A29: If you wish to be involved in the public liasion programme, please contact enquiries@selchp.com

Sheet CO2 N2O
A1: =+'Cover Page'!$B$29 -> Annual Performance Report 2023 | C1: =+'Cover Page'!$B$33 -> SELCHP
A3: Carbon dioxide emissions and biogenic content of waste inputs | F3: Notes:
A5: Carbon dioxide emissions (all types of plant)
B6: Annual mass of carbon dioxide released | C6: tonnes | D6: 325064
B7: Annual mass of carbon dioxide released per tonne of waste burned | C7: t CO2 / t waste | D7: =D6/'Operational Data'!G21 -> 0.8313582233
B8: Annual mass of carbon dioxide released per MWh of energy exported | C8: t CO2 / MWh export | D8: =D6/'Operational Data'!G25 -> 1.559741376
B9: Description of how annual carbon dioxide mass emission has been calculated. See Note 1 | C9: Average of average CO2% over the year converted to mg/m3 of flue gas and multiplied by total flue gas volume. All data from CEMS DHAS, QAL2'ed and QAL3'ed. Startup/shutdown data included. | F9: Note 1: Where available, data from CO2 CEMS should be used. Otherwise, only where no CEMS data is available, a suitable emissions factor should be used based on the tonnage of waste burned e.g.0.942 tCO2/t waste as per Tolvik report 2022, or other justified emissions factor - refer to embedded Environment Agency guidance note above or updated version for suitable descriptive text.
A10: Nitrous oxide emissions (only plants which use ammonia or urea to abate NOx emissions)
B11: Annual mass emissions of nitrous oxide | C11: tonnes N2O | D11: 8.293
B12: Description of how annual nitrous oxide mass emission has been calculated See Note 2 | C12: Calculated by CEMS DHAS. Includes startup/shutdown data. | F12: Note 2: Where available, data from N2O CEMS should be used. If no CEMS data is available, from periodic monitoring. Otherwise, a suitable emissions factor should be used based on the tonnage of waste burned e.g. 0.0981 kgN20/t waste as per 2021 Pollution Inventory data for plants with urea-based SNCR - refer to embedded Environment Agency guidance note above or updated version for suitable descriptive text.
A13: Total annual carbon dioxide and nitrous oxide emissions. See Note 3. | C13: tonnes CO2e | D13: =(D11*298)+D6 -> 327535.314 | F13: Note 3: Total annual carbon dioxide and nitrous oxide emissions reported as carbon dioxide equivalent where 1 tonne nitrous oxide is equivalent to 298 tonne carbon dioxide
A14: Biogenic CO2 emissions (See Note 4) | F14: Note 4: Only plants combusting residual municipal waste, refuse derived fuel or solid recovered fuel
B15: Percentage of total carbon dioxide emissions arising from biogenic waste | C15: % | D15: 0.5207
B16: No. of measurements undertaken | C16: Number | D16: 12
B17: Description of how percentage biogenic carbon dioxide emissions have been measured or calculated. See Note 5 | C17: Calculated by BIOMA software using CEMS data. | F17: Note 5: Examples include direct measurement via C14 method or BIOMA software - refer to embedded Environment Agency guidance note above or updated version for suitable descriptive text, quoting standards where relevant. Otherwise, as an approximation (and in lieu of any more accurate metrics which may be developed in future), the measured or estimated biogenic fraction by net calorific value can be assumed to be the same as the biogenic CO2 fraction of the total CO2 emissions from the plant.
A18: Biogenic fraction of waste feedstock (See Note 4)
B19: Yearly average biogenic percentage of the waste by net calorific value (NCV) | C19: % | D19: 0.4316
B20: If sampling undertaken, no. of samples used to ascertain average biogenic % above | C20: Number | D20: 12
B21: Description of how biogenic percentage (by NCV) has been calculated or estimated. See Note 6 | C21: Calculated by BIOMA software using CEMS data. | F21: Note 6: Where available, data from waste sampling should be used; otherwise, an estimated figure with justification can be used, or a figure assumed on the basis of a national average e.g. 2017 WRAP data for residual waste of 51.8% biogenic energy content - refer to embedded Environment Agency guidance note above or updated version for suitable descriptive text, quoting standards where relevant.
B23: Comments:

Sheet Residue Quality
A1: =+'Cover Page'!$B$29 -> Annual Performance Report 2023 | E1: =+'Cover Page'!$B$33 -> SELCHP
A3: Residue Quality Monitoring Requirements
A5: Summary of monitoring undertaken and compliance
A6: IBA - Two samples per month are analysed according to the ESA protocol one sample per quarter is analysed as per permit requirements.
A8: APC - One sample per quarter is analysed as per permit requirements
A13: Commentary on any specific events
A14: Date & Event | C14: Description
A15: October 2023 - Bi-monthly sampling | C15: The bi-monthly IBA samples couldn't be taken in September because of the prolonged outage, the September samples were taken in October once the boilers had returned to service. A total of 4 IBA samples were taken in October.
A27: Residue Quality Monitoring Results
A28: Parameter (unit) | C28: Limit | D28: Normal Operation
D29: Bottom ash | F29: APC Residues
A30: Loss on Ignition (average %) | C30: <5% | D30: -
A31: Total Organic Carbon (average %) | C31: <3% | D31: 1.18 | I31: *Average TOV from Q1 to Q4
A32: No. of Assessments Undertaken | C32: --- | D32: 24 | F32: 4
A33: No. of Hazardous Results | C33: --- | D33: 0
A35: Comments :

Sheet Water
A1: =+'Cover Page'!$B$29 -> Annual Performance Report 2023 | E1: =+'Cover Page'!$B$33 -> SELCHP
A3: Emissions to Water
A5: Summary of monitoring undertaken and compliance
A6: Water is only discharged off site to commercial sewer, in accordance with Thames Water's discharge consent requirements. There are no monitoring parameters set our in the permit. Although, monthly aggregate samples are sent for laboratory analysis against the discharge consent parameters.
A13: Commentary on any specific events
A14: Date & Event | C14: Description
A22: Emissions to Water / Sewer
A23: Parameter | D23: Monitoring Frequency | F23: Limit | G23: Target | H23: Max. | I23: Average

Sheet Air (periodic)
A1: =+'Cover Page'!$B$29 -> Annual Performance Report 2023 | E1: =+'Cover Page'!$B$33 -> SELCHP
A3: Emissions to Air (periodically monitored)
A5: Summary of monitoring undertaken, standards used and compliance | K5: Notes:
A6: Bi-Annual monitoring. Standards used as applicable; EN 1948, EN 16911-1 (MID), EN 14792, EN 12619:2013, EN 15058, EN 14790, EN ISO 21258, EN 14789, EN 14791, MID 14385, EN 1911, ISO 11338, ISO 15713, EN 14385, EN 13284-1 | K6: Template may require adjustment for any bespoke monitoring requirements of permit - please also check that all default ELV values, reference periods and the stated oxygen reference value match those for your plant, and edit if necessary!
A9: Results of emissions to air that are periodically monitored - oxygen reference 6%
A10: Substance | C10: Ref. Period | D10: Emission Limit Value* | F10: Average | K10: User to add additional tables as necessary, depending on whether quarterly or bi-annual reporting is required for the compliance year
F11: A1 | G11: A2 | H11: A3 | I11: A4 | J11: A5
A12: Hydrogen fluoride | C12: 1 hr | D12: 2 mg/m3 | F12: 0.0655 | G12: 0.0405
A13: Cd and Th and their compounds | C13: 0.5-8hrs | D13: 0.05 mg/m3 | F13: 0.0018 | G13: 0.0019
A14: Hg and its compounds | C14: 0.5-8hrs | D14: 0.05 mg/m3 | F14: 0.00165 | G14: 0.002 | K14: * Denotes limits that were in force until 2 December 2023; from 3 December 2023 the following new limits applied (those not listed remained unchanged):
A15: Sb, As, Pb, Cr, Co, Cu, Mn, Ni, V and their compounds | C15: 0.5-8hrs | D15: 0.5 mg/m3 | F15: 0.137 | G15: 0.099
A16: Dioxins & Furans (I-TEQ) | C16: 6-8hrs | D16: 0.1 ng/m3 | F16: 0.01175 | G16: 0.01505 | K16: Substance | L16: Reference Period | M16: Emission Limit Value
A17: PCBs (WHO-TEQ Humans / Mammals) | C17: 6-8hrs | D17: None set ng/m3 | F17: 0.0020115 | G17: 0.002787
A18: PCBs (WHO-TEQ Fish) | C18: 6-8hrs | D18: None set ng/m3 | F18: 9.75e-05 | G18: 0.000143 | K18: Hydrogen fluoride | L18: Average of three consecutive measurements of at least 30 minutes each | M18: 1 mg/m3
A19: PCBs (WHO-TEQ Birds) | C19: 6-8hrs | D19: None set ng/m3 | F19: 0.0041965 | G19: 0.008265 | K19: Cd and Th and their compounds | L19: Average of three consecutive measurements of at least 30 minutes each | M19: 0.02 mg/m3
A20: Dioxins & Furans (WHO-TEQ Humans / Mammals) | C20: 6-8hrs | D20: None set ng/m3 | F20: 0.01195 | G20: 0.01505 | K20: Hg and its compounds | L20: Average of three consecutive measurements of at least 30 minutes each | M20: 0.02 mg/m3
A21: Dioxins & Furans (WHO-TEQ Fish) | C21: 6-8hrs | D21: None set ng/m3 | F21: 0.01165 | G21: 0.01505 | K21: Sb, As, Pb, Cr, Co, Cu, Mn, Ni, V and their compounds | L21: Average of three consecutive measurements of at least 30 minutes each | M21: 0.3 mg/m3
A22: Dioxins & Furans (WHO-TEQ Birds) | C22: 6-8hrs | D22: None set ng/m3 | F22: 0.0174 | G22: 0.02125 | K22: Dioxins & Furans (I-TEQ) | L22: 6-8hrs | M22: 0.06 ng/m3
A23: Anthanthrene | C23: 6-8hrs | D23: None set µg/m3 | F23: 0.0024 | G23: 0.0092
A24: Benzo(a)anthracene | C24: 6-8hrs | D24: None set µg/m3 | F24: 0.0081 | G24: 0.0045
A25: Benzo(a)pyrene | C25: 6-8hrs | D25: None set µg/m3 | F25: 0.0024 | G25: 0.0018
A26: Benzo(b)fluoranthene | C26: 6-8hrs | D26: None set µg/m3 | F26: 0.0024 | G26: 0.0018
A27: Benzo(b)naptho(2,1-d) thiophene | C27: 6-8hrs | D27: None set µg/m3 | F27: 0.0024 | G27: 0.0018
A28: Benzo(c)phenanthrene | C28: 6-8hrs | D28: None set µg/m3 | F28: 0.0024 | G28: 0.0018
A29: Benzo(ghi)perylene | C29: 6-8hrs | D29: None set µg/m3 | F29: 0.0024 | G29: 0.0029
A30: Benzo(k)fluoranthene | C30: 6-8hrs | D30: None set µg/m3 | F30: 0.0024 | G30: 0.0018
A31: Cholanthrene | C31: 6-8hrs | D31: None set µg/m3 | F31: 0.0024 | G31: 0.0018
A32: Chrysene | C32: 6-8hrs | D32: None set µg/m3 | F32: 0.0072 | G32: 0.0048
A33: Cyclopenta(cd)pyrene | C33: 6-8hrs | D33: None set µg/m3 | F33: 0.0024 | G33: 0.0018
A34: Dibenzo(ai)pyrene | C34: 6-8hrs | D34: None set µg/m3 | F34: 0.0024 | G34: 0.0018
A35: Dibenzo(ah)anthracene | C35: 6-8hrs | D35: None set µg/m3 | F35: 0.0024 | G35: 0.0018
A36: Fluoranthene | C36: 6-8hrs | D36: None set µg/m3 | F36: 0.0376 | G36: 0.0286
A37: Indeno(123-cd) pyrene | C37: 6-8hrs | D37: None set µg/m3 | F37: 0.0024 | G37: 0.0018
A38: Naphthalene | C38: 6-8hrs | D38: None set µg/m3 | F38: 0.3358 | G38: 0.2338
A39: Comments :

Sheet Air (CEMS)
A1: =+'Cover Page'!$B$29 -> Annual Performance Report 2023 | I1: =+'Cover Page'!$B$33 -> SELCHP
A3: Emissions to Air (continously monitored)
N4: Notes:
A5: Summary of monitoring undertaken, standards used and compliance | N5: Template may require adjustment for any bespoke monitoring requirements of permit
A6: Three MCERT cretified CEMS are installed at the base of the Chimeney. Two duty, one for each combustion line and a third standby which may be selected to either line. Extractive sampling heated lines smple the flues gases. Instuments; MIR-FT, FID, in flue electrified probe and O2 probe. | N6: Please check that all default ELV values match those for your plant and edit if necessary!
N7: Report to 1 decimal place
A11: Results of emissions to air that are continuously monitored (maximum and average values for each line) - oxygen reference 11%
A12: Substance | B12: Reference Period | C12: Emission Limit Value** | D12: A1 | F12: A2 | H12: A3 | J12: A4 | L12: A5
D13: Max. | E13: Avg. | F13: Max. | G13: Avg. | H13: Max. | I13: Avg. | J13: Max. | K13: Avg. | L13: Max. | M13: Avg. | N13: ** Denotes limits that were in force until 2 December 2023; from 3 December 2023 the following new limits applied (those not listed remained unchanged):
A14: Oxides of nitrogen | B14: Daily mean | C14: 200 mg/m3 | D14: =NOx!O19 -> 195.39 | E14: =NOx!N19 -> 171.205 | F14: =NOx!O34 -> 197.19 | G14: =NOx!N34 -> 174.2758333
B15: ½ hourly mean | C15: 400 mg/m3 | D15: =NOx!M19 -> 325.92 | E15: =NOx!L19 -> 171.0633333 | F15: =NOx!M34 -> 299.76 | G15: =NOx!L34 -> 174.2941667 | N15: Substance | O15: Reference Period | P15: Emission Limit Value
A16: Particulates | B16: Daily mean | C16: 10 mg/m3 | D16: =Particulates!O19 -> 3.97 | E16: =Particulates!N19 -> 1.763333333 | F16: =Particulates!O34 -> 3.8 | G16: =Particulates!N34 -> 1.51
B17: ½ hourly mean | C17: 30 mg/m3 | D17: =Particulates!M19 -> 21.17 | E17: =Particulates!L19 -> 1.7575 | F17: =Particulates!M34 -> 16.43 | G17: =Particulates!L34 -> 1.488333333 | N17: Oxides of nitrogen | O17: Daily mean | P17: 180 mg/m3
A18: Total Organic Carbon | B18: Daily mean | C18: 10 mg/m3 | D18: =TOC!O19 -> 2.14 | E18: =TOC!N19 -> 0.67 | F18: =TOC!O34 -> 1.84 | G18: =TOC!N34 -> 0.5575 | N18: Particulates | O18: Daily mean | P18: 5 mg/m3
B19: ½ hourly mean | C19: 20 mg/m3 | D19: =TOC!M19 -> 15.99 | E19: =TOC!L19 -> 0.6775 | F19: =TOC!M34 -> 14.18 | G19: =TOC!L34 -> 0.5833333333 | N19: Hydrogen chloride | O19: Daily mean | P19: 8 mg/m3
A20: Hydrogen chloride | B20: Daily mean | C20: 10 mg/m3 | D20: =HCl!O19 -> 8.39 | E20: =HCl!N19 -> 5.816666667 | F20: =HCl!O34 -> 8.68 | G20: =HCl!N34 -> 5.965 | N20: Sulphur dioxide | O20: Daily mean | P20: 40 mg/m3
B21: ½ hourly mean | C21: 60 mg/m3 | D21: =HCl!M19 -> 48.8 | E21: =HCl!L19 -> 5.805833333 | F21: =HCl!M34 -> 31.63 | G21: =HCl!L34 -> 5.948333333 | N21: Ammonia | O21: Daily mean | P21: 15 mg/m3
A22: Sulphur dioxide | B22: Daily mean | C22: 50 mg/m3 | D22: ='SO2'!O19 -> 24.32 | E22: ='SO2'!N19 -> 15.53083333 | F22: ='SO2'!O34 -> 24.87 | G22: ='SO2'!N34 -> 15.095
B23: ½ hourly mean | C23: 200 mg/m3 | D23: ='SO2'!M19 -> 132.55 | E23: ='SO2'!L19 -> 15.57583333 | F23: ='SO2'!M34 -> 103.71 | G23: ='SO2'!L34 -> 15.17166667
A24: Carbon monoxide | B24: Daily mean | C24: 50 mg/m3 | D24: ='CO 95% 10 min'!Q22 -> 17.22 | E24: ='CO 95% 10 min'!P22 -> 6.2075 | F24: ='CO 95% 10 min'!Q37 -> 10.6 | G24: ='CO 95% 10 min'!P37 -> 5.219166667
B25: 95%ile 10-min avg * | C25: 150 mg/m3 * | D25: =MAX('CO 95% 10 min'!M10:M21) -> 89.01 | E25: ='CO 95% 10 min'!M22 -> 38.68666667 | F25: =MAX('CO 95% 10 min'!M25:M36) -> 24.61 | G25: ='CO 95% 10 min'!M37 -> 16.1025
A26: Ammonia | B26: Daily mean | C26: No limit set until 03/12/23 | D26: ='NH3'!O19 -> 9.17 | E26: ='NH3'!N19 -> 2.4975 | F26: ='NH3'!O34 -> 9.35 | G26: ='NH3'!N34 -> 4.586666667
A27: ** = delete as appropriate, depending on whether your plant has half-horly or 10-min CO ELVs
A28: Comments :

Sheet HCl
A1: =+'Cover Page'!$B$29 -> Annual Performance Report 2023 | E1: =+'Cover Page'!$B$33 -> SELCHP
A3: Monitoring of Hydrogen Chloride emissions | D3: Whole Installation | G3: See Notes in Cell Q3 | J3: =+A3 -> Monitoring of Hydrogen Chloride emissions | N3: Per Combustion Line | Q3: Notes:
Q4: User to add logic to complete Whole installation, Table A5:G18. From the data in Per Combustion Line, Table J6:O79, subject to No. of lines installed
A5: mg/Nm3 | B5: 1/2 Hourly Reference Periods | E5: Daily Reference Periods
A6: =+'Cover Page'!C39 -> 2023 | B6: 1/2 hourly HCl ELV | C6: Monthly 1/2 hourly mean | D6: Highest 1/2 hourly maximum | E6: Daily HCl ELV* | F6: Monthly daily mean | G6: Highest daily maximum | J6: =+A6 -> 2023 | K6: mg/Nm3 | L6: Monthly 1/2 hourly mean | M6: Monthly 1/2 hourly maximum | N6: Monthly daily mean | O6: Monthly daily maximum
A7: Jan | B7: 60 | C7: 5.89 | D7: 26 | E7: 10 | F7: 5.94 | G7: 8.05 | J7: A1 | K7: Jan | L7: 6.39 | M7: 26 | N7: 6.44 | O7: 8.05
A8: Feb | B8: 60 | C8: 6.88 | D8: 19.79 | E8: 10 | F8: 6.88 | G8: 8.68 | K8: Feb | L8: 6.85 | M8: 19.79 | N8: 6.85 | O8: 8.34
A9: Mar | B9: 60 | C9: 6.67 | D9: 22.69 | E9: 10 | F9: 6.7 | G9: 8.2 | K9: Mar | L9: 6.61 | M9: 17.35 | N9: 6.65 | O9: 7.86 | Q9: Whole Installation table A5:G18:
A10: Apr | B10: 60 | C10: 6.37 | D10: 16.27 | E10: 10 | F10: 6.37 | G10: 7.9 | K10: Apr | L10: 6.24 | M10: 13.92 | N10: 6.26 | O10: 7.43 | Q10: Mean: for 1/2 hourly and daily periods calculate mean of values across all operational combustion lines for the month
A11: May | B11: 60 | C11: 6.74 | D11: 30.93 | E11: 10 | F11: 6.73 | G11: 8.22 | K11: May | L11: 6.52 | M11: 21.5 | N11: 6.52 | O11: 7.74
A12: Jun | B12: 60 | C12: 6.7 | D12: 48.8 | E12: 10 | F12: 6.74 | G12: 8.39 | K12: Jun | L12: 6.61 | M12: 48.8 | N12: 6.68 | O12: 8.39
A13: Jul | B13: 60 | C13: 6.47 | D13: 34.86 | E13: 10 | F13: 6.46 | G13: 8.28 | K13: Jul | L13: 6.44 | M13: 34.86 | N13: 6.44 | O13: 8.28 | Q13: Maximum: for 1/2 hourly and daily periods use the highest value across all operational combustion lines for the month
A14: Aug | B14: 60 | C14: 5.48 | D14: 19.54 | E14: 10 | F14: 5.42 | G14: 7.08 | K14: Aug | L14: 5.46 | M14: 19.54 | N14: 5.45 | O14: 5.94
A15: Sep | B15: 60 | C15: 5.19 | D15: 11.38 | E15: 10 | F15: 5.2 | G15: 5.93 | K15: Sep | L15: 5.04 | M15: 9.61 | N15: 5.01 | O15: 5.62
A16: Oct | B16: 60 | C16: 4.52 | D16: 22.67 | E16: 10 | F16: 4.55 | G16: 6.09 | K16: Oct | L16: 4.32 | M16: 13.53 | N16: 4.32 | O16: 5.75
A17: Nov | B17: 60 | C17: 4.76 | D17: 17.51 | E17: 10 | F17: 4.72 | G17: 6.09 | K17: Nov | L17: 4.47 | M17: 17.32 | N17: 4.47 | O17: 6.07
A18: Dec | B18: 60 | C18: 4.97 | D18: 17.19 | E18: 10 | F18: 4.97 | G18: 6.21 | K18: Dec | L18: 4.72 | M18: 17.19 | N18: 4.71 | O18: 6.01
E19: * ELV reduced to 8 mg/Nm3 on 3 December 2023 | K19: Annual | L19: =AVERAGE(L7:L18) -> 5.805833333 | M19: =MAX(M7:M18) -> 48.8 | N19: =AVERAGE(N7:N18) -> 5.816666667 | O19: =MAX(O7:O18) -> 8.39
J21: =+A6 -> 2023 | K21: mg/Nm3 | L21: Monthly 1/2 hourly mean | M21: Monthly 1/2 hourly maximum | N21: Monthly daily mean | O21: Monthly daily maximum
J22: A2 | K22: Jan | L22: 4.86 | M22: 19.28 | N22: 4.85 | O22: 6.19
K23: Feb | L23: 6.9 | M23: 19.48 | N23: 6.9 | O23: 8.68
K24: Mar | L24: 6.73 | M24: 22.69 | N24: 6.73 | O24: 8.2
K25: Apr | L25: 6.51 | M25: 16.27 | N25: 6.5 | O25: 7.9
K26: May | L26: 6.98 | M26: 30.93 | N26: 6.95 | O26: 8.22
K27: Jun | L27: 6.79 | M27: 31.63 | N27: 6.79 | O27: 8.05
K28: Jul | L28: 6.49 | M28: 28.31 | N28: 6.49 | O28: 7.43
K29: Aug | L29: 5.5 | M29: 15.52 | N29: 5.39 | O29: 7.08
K30: Sep | L30: 5.61 | M30: 11.38 | N30: 5.93 | O30: 5.93
K31: Oct | L31: 4.72 | M31: 22.67 | N31: 4.79 | O31: 6.09
K32: Nov | L32: 5.07 | M32: 17.51 | N32: 5.01 | O32: 6.09
K33: Dec | L33: 5.22 | M33: 11.67 | N33: 5.25 | O33: 6.21
K34: Annual | L34: =AVERAGE(L22:L33) -> 5.948333333 | M34: =MAX(M22:M33) -> 31.63 | N34: =AVERAGE(N22:N33) -> 5.965 | O34: =MAX(O22:O33) -> 8.68
J36: =+A6 -> 2023 | K36: mg/Nm3 | L36: Monthly 1/2 hourly mean | M36: Monthly 1/2 hourly maximum | N36: Monthly daily mean | O36: Monthly daily maximum
J37: A3 | K37: Jan
K38: Feb
K39: Mar
K40: Apr
K41: May
K42: Jun
K43: Jul
K44: Aug
K45: Sep
K46: Oct
K47: Nov
A48: Comments : | K48: Dec
K49: Annual | L49: =AVERAGE(L37:L48) ->  | M49: =MAX(M37:M48) -> 0 | N49: =AVERAGE(N37:N48) ->  | O49: =MAX(O37:O48) -> 0
J51: =+A6 -> 2023 | K51: mg/Nm3 | L51: Monthly 1/2 hourly mean | M51: Monthly 1/2 hourly maximum | N51: Monthly daily mean | O51: Monthly daily maximum
J52: A4 | K52: Jan
K53: Feb
K54: Mar
K55: Apr
K56: May
K57: Jun
K58: Jul
K59: Aug
K60: Sep
K61: Oct
K62: Nov
K63: Dec
K64: Annual | L64: =AVERAGE(L52:L63) ->  | M64: =MAX(M52:M63) -> 0 | N64: =AVERAGE(N52:N63) ->  | O64: =MAX(O52:O63) -> 0
J65: =+A6 -> 2023
J66: A5 | K66: mg/Nm3 | L66: Monthly 1/2 hourly mean | M66: Monthly 1/2 hourly maximum | N66: Monthly daily mean | O66: Monthly daily maximum
K67: Jan
K68: Feb
K69: Mar
K70: Apr
K71: May
K72: Jun
K73: Jul
K74: Aug
K75: Sep
K76: Oct
K77: Nov
K78: Dec
K79: Annual | L79: =AVERAGE(L67:L78) ->  | M79: =MAX(M67:M78) -> 0 | N79: =AVERAGE(N67:N78) ->  | O79: =MAX(O67:O78) -> 0

Sheet SO2
A1: =+'Cover Page'!$B$29 -> Annual Performance Report 2023 | E1: =+'Cover Page'!$B$33 -> SELCHP
A3: Monitoring of Sulphur dioxide emissions | D3: Whole Installation | G3: See Notes in Cell Q3 | J3: =+A3 -> Monitoring of Sulphur dioxide emissions | N3: Per Combustion Line | Q3: Notes:
Q4: User to add logic to complete Whole installation, Table A5:G18. From the data in Per Combustion Line, Table J6:O79, subject to No. of lines installed
A5: mg/Nm3 | B5: 1/2 Hourly Reference Periods | E5: Daily Reference Periods
A6: =+'Cover Page'!C39 -> 2023 | B6: 1/2 hourly SO2 ELV | C6: Monthly 1/2 hourly mean | D6: Highest 1/2 hourly maximum | E6: Daily SO2 ELV* | F6: Monthly daily mean | G6: Highest daily maximum | J6: =+A6 -> 2023 | K6: mg/Nm3 | L6: Monthly 1/2 hourly mean | M6: Monthly 1/2 hourly maximum | N6: Monthly daily mean | O6: Monthly daily maximum
A7: Jan | B7: 200 | C7: 14.1 | D7: 65.4 | E7: 50 | F7: 14.09 | G7: 24.87 | J7: A1 | K7: Jan | L7: 13.16 | M7: 59.24 | N7: 13.22 | O7: 20.22
A8: Feb | B8: 200 | C8: 15.53 | D8: 132.55 | E8: 50 | F8: 15.54 | G8: 24.06 | K8: Feb | L8: 15.75 | M8: 132.55 | N8: 15.76 | O8: 24.06
A9: Mar | B9: 200 | C9: 15.33 | D9: 57.02 | E9: 50 | F9: 15.33 | G9: 19.91 | K9: Mar | L9: 15.51 | M9: 57.02 | N9: 15.5 | O9: 19.91 | Q9: Whole Installation table A5:G18:
A10: Apr | B10: 200 | C10: 15.69 | D10: 58.78 | E10: 50 | F10: 15.37 | G10: 23.68 | K10: Apr | L10: 13.94 | M10: 45.92 | N10: 13.73 | O10: 18.47 | Q10: Mean: for 1/2 hourly and daily periods calculate mean of values across all operational combustion lines for the month
A11: May | B11: 200 | C11: 18.05 | D11: 68.37 | E11: 50 | F11: 17.95 | G11: 22.92 | K11: May | L11: 17.35 | M11: 62.43 | N11: 17.35 | O11: 22.01
A12: Jun | B12: 200 | C12: 17.65 | D12: 71.04 | E12: 50 | F12: 17.5 | G12: 23.27 | K12: Jun | L12: 17.37 | M12: 71.04 | N12: 17.32 | O12: 23.27
A13: Jul | B13: 200 | C13: 14.54 | D13: 127.12 | E13: 50 | F13: 14.54 | G13: 23.41 | K13: Jul | L13: 13.71 | M13: 127.12 | N13: 13.7 | O13: 20.47 | Q13: Maximum: for 1/2 hourly and daily periods use the highest value across all operational combustion lines for the month
A14: Aug | B14: 200 | C14: 12.07 | D14: 40.45 | E14: 50 | F14: 11.59 | G14: 20.04 | K14: Aug | L14: 11.42 | M14: 40.45 | N14: 11.18 | O14: 20.04
A15: Sep | B15: 200 | C15: 16.88 | D15: 38.75 | E15: 50 | F15: 17.07 | G15: 18.39 | K15: Sep | L15: 16.76 | M15: 28.51 | N15: 16.74 | O15: 17.52
A16: Oct | B16: 200 | C16: 16.57 | D16: 86.41 | E16: 50 | F16: 16.64 | G16: 24.32 | K16: Oct | L16: 19.55 | M16: 86.41 | N16: 19.69 | O16: 24.32
A17: Nov | B17: 200 | C17: 14.47 | D17: 62.27 | E17: 50 | F17: 14.44 | G17: 22.24 | K17: Nov | L17: 17.03 | M17: 58.05 | N17: 17.03 | O17: 22.24
A18: Dec | B18: 200 | C18: 12.99 | D18: 49.9 | E18: 50 | F18: 12.84 | G18: 20.39 | K18: Dec | L18: 15.36 | M18: 49.9 | N18: 15.15 | O18: 20.39
E19: * ELV reduced to 40 mg/Nm3 on 3 December 2023 | K19: Annual | L19: =AVERAGE(L7:L18) -> 15.57583333 | M19: =MAX(M7:M18) -> 132.55 | N19: =AVERAGE(N7:N18) -> 15.53083333 | O19: =MAX(O7:O18) -> 24.32
J21: =+A6 -> 2023 | K21: mg/Nm3 | L21: Monthly 1/2 hourly mean | M21: Monthly 1/2 hourly maximum | N21: Monthly daily mean | O21: Monthly daily maximum
J22: A2 | K22: Jan | L22: 16.08 | M22: 65.4 | N22: 15.99 | O22: 24.87
K23: Feb | L23: 15.32 | M23: 103.71 | N23: 15.32 | O23: 20.09
K24: Mar | L24: 15.17 | M24: 43.04 | N24: 15.18 | O24: 17.95
K25: Apr | L25: 17.66 | M25: 58.78 | N25: 17.23 | O25: 23.68
K26: May | L26: 18.8 | M26: 68.37 | N26: 18.63 | O26: 22.92
K27: Jun | L27: 17.92 | M27: 60.49 | N27: 17.66 | O27: 22.04
K28: Jul | L28: 15.37 | M28: 60.78 | N28: 15.37 | O28: 23.41
K29: Aug | L29: 12.7 | M29: 37.04 | N29: 12 | O29: 14.65
K30: Sep | L30: 17.24 | M30: 38.75 | N30: 18.39 | O30: 18.39
K31: Oct | L31: 13.45 | M31: 65.74 | N31: 13.47 | O31: 19.14
K32: Nov | L32: 11.76 | M32: 62.27 | N32: 11.46 | O32: 15.16
K33: Dec | L33: 10.59 | M33: 31.59 | N33: 10.44 | O33: 14.78
K34: Annual | L34: =AVERAGE(L22:L33) -> 15.17166667 | M34: =MAX(M22:M33) -> 103.71 | N34: =AVERAGE(N22:N33) -> 15.095 | O34: =MAX(O22:O33) -> 24.87
J36: =+A6 -> 2023 | K36: mg/Nm3 | L36: Monthly 1/2 hourly mean | M36: Monthly 1/2 hourly maximum | N36: Monthly daily mean | O36: Monthly daily maximum
J37: A3 | K37: Jan
K38: Feb
K39: Mar
K40: Apr
K41: May
K42: Jun
K43: Jul
K44: Aug
K45: Sep
K46: Oct
K47: Nov
A48: Comments : | K48: Dec
K49: Annual | L49: =AVERAGE(L37:L48) ->  | M49: =MAX(M37:M48) -> 0 | N49: =AVERAGE(N37:N48) ->  | O49: =MAX(O37:O48) -> 0
J51: =+A6 -> 2023 | K51: mg/Nm3 | L51: Monthly 1/2 hourly mean | M51: Monthly 1/2 hourly maximum | N51: Monthly daily mean | O51: Monthly daily maximum
J52: A4 | K52: Jan
K53: Feb
K54: Mar
K55: Apr
K56: May
K57: Jun
K58: Jul
K59: Aug
K60: Sep
K61: Oct
K62: Nov
K63: Dec
K64: Annual | L64: =AVERAGE(L52:L63) ->  | M64: =MAX(M52:M63) -> 0 | N64: =AVERAGE(N52:N63) ->  | O64: =MAX(O52:O63) -> 0
J65: =+A6 -> 2023
J66: A5 | K66: mg/Nm3 | L66: Monthly 1/2 hourly mean | M66: Monthly 1/2 hourly maximum | N66: Monthly daily mean | O66: Monthly daily maximum
K67: Jan
K68: Feb
K69: Mar
K70: Apr
K71: May
K72: Jun
K73: Jul
K74: Aug
K75: Sep
K76: Oct
K77: Nov
K78: Dec
K79: Annual | L79: =AVERAGE(L67:L78) ->  | M79: =MAX(M67:M78) -> 0 | N79: =AVERAGE(N67:N78) ->  | O79: =MAX(O67:O78) -> 0

Sheet NOx
A1: =+'Cover Page'!$B$29 -> Annual Performance Report 2023 | E1: =+'Cover Page'!$B$33 -> SELCHP
A3: Monitoring of Oxides of Nitrogen emissions | D3: Whole Installation | G3: See Notes in Cell Q3 | J3: =+A3 -> Monitoring of Oxides of Nitrogen emissions | N3: Per Combustion Line | Q3: Notes:
Q4: User to add logic to complete Whole installation, Table A5:G18. From the data in Per Combustion Line, Table J6:O79, subject to No. of lines installed
A5: mg/Nm3 | B5: 1/2 Hourly Reference Periods | E5: Daily Reference Periods
A6: =+'Cover Page'!C39 -> 2023 | B6: 1/2 hourly NOx ELV | C6: Monthly 1/2 hourly mean | D6: Highest 1/2 hourly maximum | E6: Daily NOx ELV* | F6: Monthly daily mean | G6: Highest daily maximum | J6: =+A6 -> 2023 | K6: mg/Nm3 | L6: Monthly 1/2 hourly mean | M6: Monthly 1/2 hourly maximum | N6: Monthly daily mean | O6: Monthly daily maximum
A7: Jan | B7: 400 | C7: 175.3 | D7: 279.83 | E7: 200 | F7: 175.24 | G7: 188.41 | J7: A1 | K7: Jan | L7: 173 | M7: 279.83 | N7: 173.04 | O7: 188.41
A8: Feb | B8: 400 | C8: 182.52 | D8: 259.17 | E8: 200 | F8: 182.52 | G8: 192.58 | K8: Feb | L8: 179.77 | M8: 229.6 | N8: 179.77 | O8: 188.88
A9: Mar | B9: 400 | C9: 185.32 | D9: 278.19 | E9: 200 | F9: 185.23 | G9: 197.19 | K9: Mar | L9: 184.15 | M9: 255.09 | N9: 183.87 | O9: 195.39 | Q9: Whole Installation table A5:G18:
A10: Apr | B10: 400 | C10: 180.84 | D10: 253.04 | E10: 200 | F10: 181.05 | G10: 196.69 | K10: Apr | L10: 176.51 | M10: 241.8 | N10: 176.78 | O10: 190.2 | Q10: Mean: for 1/2 hourly and daily periods calculate mean of values across all operational combustion lines for the month
A11: May | B11: 400 | C11: 177.09 | D11: 271.8 | E11: 200 | F11: 177.12 | G11: 194.94 | K11: May | L11: 173.7 | M11: 242.14 | N11: 173.69 | O11: 187.69
A12: Jun | B12: 400 | C12: 171.18 | D12: 256.29 | E12: 200 | F12: 171.66 | G12: 179.79 | K12: Jun | L12: 168.2 | M12: 233.72 | N12: 168.96 | O12: 179.79
A13: Jul | B13: 400 | C13: 166.1 | D13: 237.23 | E13: 200 | F13: 166.11 | G13: 179.53 | K13: Jul | L13: 162.21 | M13: 221.98 | N13: 162.24 | O13: 179.53 | Q13: Maximum: for 1/2 hourly and daily periods use the highest value across all operational combustion lines for the month
A14: Aug | B14: 400 | C14: 165.94 | D14: 246.87 | E14: 200 | F14: 165.99 | G14: 174.07 | K14: Aug | L14: 166.17 | M14: 206.07 | N14: 166.99 | O14: 173.2
A15: Sep | B15: 400 | C15: 164.46 | D15: 194.17 | E15: 200 | F15: 164.19 | G15: 170.94 | K15: Sep | L15: 163.8 | M15: 190.18 | N15: 163.76 | O15: 170.94
A16: Oct | B16: 400 | C16: 165.68 | D16: 325.92 | E16: 200 | F16: 165.8 | G16: 181.69 | K16: Oct | L16: 165.76 | M16: 325.92 | N16: 166.01 | O16: 181.69
A17: Nov | B17: 400 | C17: 168.08 | D17: 244.44 | E17: 200 | F17: 168.29 | G17: 177.95 | K17: Nov | L17: 171.3 | M17: 239.96 | N17: 171.3 | O17: 177.95
A18: Dec | B18: 400 | C18: 167.57 | D18: 299.76 | E18: 200 | F18: 167.71 | G18: 175.61 | K18: Dec | L18: 168.19 | M18: 242.2 | N18: 168.05 | O18: 175.61
E19: * ELV reduced to 180 mg/Nm3 on 3 December 2023 | K19: Annual | L19: =AVERAGE(L7:L18) -> 171.0633333 | M19: =MAX(M7:M18) -> 325.92 | N19: =AVERAGE(N7:N18) -> 171.205 | O19: =MAX(O7:O18) -> 195.39
J21: =+A6 -> 2023 | K21: mg/Nm3 | L21: Monthly 1/2 hourly mean | M21: Monthly 1/2 hourly maximum | N21: Monthly daily mean | O21: Monthly daily maximum
J22: A2 | K22: Jan | L22: 180.15 | M22: 274.3 | N22: 180.04 | O22: 187.4
K23: Feb | L23: 185.27 | M23: 259.17 | N23: 185.27 | O23: 192.58
K24: Mar | L24: 186.38 | M24: 278.19 | N24: 186.37 | O24: 197.19
K25: Apr | L25: 185.72 | M25: 253.04 | N25: 185.91 | O25: 196.69
K26: May | L26: 180.69 | M26: 271.8 | N26: 180.92 | O26: 194.94
K27: Jun | L27: 174.05 | M27: 256.29 | N27: 174.16 | O27: 179.57
K28: Jul | L28: 169.98 | M28: 237.23 | N28: 169.98 | O28: 179.22
K29: Aug | L29: 165.72 | M29: 246.87 | N29: 164.98 | O29: 174.07
K30: Sep | L30: 166.37 | M30: 194.17 | N30: 165.93 | O30: 165.93
K31: Oct | L31: 165.6 | M31: 263.17 | N31: 165.58 | O31: 180.33
K32: Nov | L32: 164.65 | M32: 244.44 | N32: 164.81 | O32: 175.01
K33: Dec | L33: 166.95 | M33: 299.76 | N33: 167.36 | O33: 174.68
K34: Annual | L34: =AVERAGE(L22:L33) -> 174.2941667 | M34: =MAX(M22:M33) -> 299.76 | N34: =AVERAGE(N22:N33) -> 174.2758333 | O34: =MAX(O22:O33) -> 197.19
J36: =+A6 -> 2023 | K36: mg/Nm3 | L36: Monthly 1/2 hourly mean | M36: Monthly 1/2 hourly maximum | N36: Monthly daily mean | O36: Monthly daily maximum
J37: A3 | K37: Jan
K38: Feb
K39: Mar
K40: Apr
K41: May
K42: Jun
K43: Jul
K44: Aug
K45: Sep
K46: Oct
K47: Nov
A48: Comments : | K48: Dec
K49: Annual | L49: =AVERAGE(L37:L48) ->  | M49: =MAX(M37:M48) -> 0 | N49: =AVERAGE(N37:N48) ->  | O49: =MAX(O37:O48) -> 0
J51: =+A6 -> 2023 | K51: mg/Nm3 | L51: Monthly 1/2 hourly mean | M51: Monthly 1/2 hourly maximum | N51: Monthly daily mean | O51: Monthly daily maximum
J52: A4 | K52: Jan
K53: Feb
K54: Mar
K55: Apr
K56: May
K57: Jun
K58: Jul
K59: Aug
K60: Sep
K61: Oct
K62: Nov
K63: Dec
K64: Annual | L64: =AVERAGE(L52:L63) ->  | M64: =MAX(M52:M63) -> 0 | N64: =AVERAGE(N52:N63) ->  | O64: =MAX(O52:O63) -> 0
J65: =+A6 -> 2023
J66: A5 | K66: mg/Nm3 | L66: Monthly 1/2 hourly mean | M66: Monthly 1/2 hourly maximum | N66: Monthly daily mean | O66: Monthly daily maximum
K67: Jan
K68: Feb
K69: Mar
K70: Apr
K71: May
K72: Jun
K73: Jul
K74: Aug
K75: Sep
K76: Oct
K77: Nov
K78: Dec
K79: Annual | L79: =AVERAGE(L67:L78) ->  | M79: =MAX(M67:M78) -> 0 | N79: =AVERAGE(N67:N78) ->  | O79: =MAX(O67:O78) -> 0

Sheet TOC
A1: =+'Cover Page'!$B$29 -> Annual Performance Report 2023 | E1: =+'Cover Page'!$B$33 -> SELCHP
A3: Monitoring of Total organic carbon emissions | D3: Whole Installation | G3: See Notes in Cell Q3 | J3: =+A3 -> Monitoring of Total organic carbon emissions | N3: Per Combustion Line | Q3: Notes:
Q4: User to add logic to complete Whole installation, Table A5:G18. From the data in Per Combustion Line, Table J6:O79, subject to No. of lines installed
A5: mg/Nm3 | B5: 1/2 Hourly Reference Periods | E5: Daily Reference Periods
A6: =+'Cover Page'!C39 -> 2023 | B6: 1/2 hourly TOC ELV | C6: Monthly 1/2 hourly mean | D6: Highest 1/2 hourly maximum | E6: Daily TOC ELV | F6: Monthly daily mean | G6: Highest daily maximum | J6: =+A6 -> 2023 | K6: mg/Nm3 | L6: Monthly 1/2 hourly mean | M6: Monthly 1/2 hourly maximum | N6: Monthly daily mean | O6: Monthly daily maximum
A7: Jan | B7: 20 | C7: 0.37 | D7: 14.18 | E7: 10 | F7: 0.36 | G7: 1.84 | J7: A1 | K7: Jan | L7: 0.17 | M7: 7.91 | N7: 0.19 | O7: 0.59
A8: Feb | B8: 20 | C8: 0.51 | D8: 6.48 | E8: 10 | F8: 0.51 | G8: 1.14 | K8: Feb | L8: 0.33 | M8: 6.48 | N8: 0.33 | O8: 0.73
A9: Mar | B9: 20 | C9: 0.35 | D9: 9.52 | E9: 10 | F9: 0.33 | G9: 0.82 | K9: Mar | L9: 0.18 | M9: 9.52 | N9: 0.14 | O9: 0.64 | Q9: Whole Installation table A5:G18:
A10: Apr | B10: 20 | C10: 0.5 | D10: 8.04 | E10: 10 | F10: 0.45 | G10: 1.16 | K10: Apr | L10: 0.34 | M10: 5.99 | N10: 0.31 | O10: 0.77 | Q10: Mean: for 1/2 hourly and daily periods calculate mean of values across all operational combustion lines for the month
A11: May | B11: 20 | C11: 0.46 | D11: 8.89 | E11: 10 | F11: 0.45 | G11: 0.73 | K11: May | L11: 0.32 | M11: 6.44 | N11: 0.32 | O11: 0.56
A12: Jun | B12: 20 | C12: 0.66 | D12: 7.99 | E12: 10 | F12: 0.66 | G12: 1.65 | K12: Jun | L12: 0.78 | M12: 6.44 | N12: 0.79 | O12: 1.65
A13: Jul | B13: 20 | C13: 0.91 | D13: 15.99 | E13: 10 | F13: 0.91 | G13: 2.14 | K13: Jul | L13: 1.3 | M13: 15.99 | N13: 1.3 | O13: 2.14 | Q13: Maximum: for 1/2 hourly and daily periods use the highest value across all operational combustion lines for the month
A14: Aug | B14: 20 | C14: 1.02 | D14: 9.47 | E14: 10 | F14: 0.97 | G14: 1.54 | K14: Aug | L14: 1.31 | M14: 5.17 | N14: 1.29 | O14: 1.54
A15: Sep | B15: 20 | C15: 0.95 | D15: 6 | E15: 10 | F15: 0.97 | G15: 1.06 | K15: Sep | L15: 1 | M15: 6 | N15: 1 | O15: 1.06
A16: Oct | B16: 20 | C16: 0.77 | D16: 11.73 | E16: 10 | F16: 0.74 | G16: 1.62 | K16: Oct | L16: 0.96 | M16: 11.73 | N16: 0.94 | O16: 1.62
A17: Nov | B17: 20 | C17: 0.56 | D17: 7.42 | E17: 10 | F17: 0.54 | G17: 0.9 | K17: Nov | L17: 0.74 | M17: 5.44 | N17: 0.74 | O17: 0.9
A18: Dec | B18: 20 | C18: 0.44 | D18: 3.62 | E18: 10 | F18: 0.42 | G18: 0.86 | K18: Dec | L18: 0.7 | M18: 3.62 | N18: 0.69 | O18: 0.86
K19: Annual | L19: =AVERAGE(L7:L18) -> 0.6775 | M19: =MAX(M7:M18) -> 15.99 | N19: =AVERAGE(N7:N18) -> 0.67 | O19: =MAX(O7:O18) -> 2.14
J21: =+A6 -> 2023 | K21: mg/Nm3 | L21: Monthly 1/2 hourly mean | M21: Monthly 1/2 hourly maximum | N21: Monthly daily mean | O21: Monthly daily maximum
J22: A2 | K22: Jan | L22: 0.78 | M22: 14.18 | N22: 0.74 | O22: 1.84
K23: Feb | L23: 0.69 | M23: 5.41 | N23: 0.69 | O23: 1.14
K24: Mar | L24: 0.5 | M24: 3.9 | N24: 0.5 | O24: 0.82
K25: Apr | L25: 0.67 | M25: 8.04 | N25: 0.61 | O25: 1.16
K26: May | L26: 0.61 | M26: 8.89 | N26: 0.58 | O26: 0.73
K27: Jun | L27: 0.56 | M27: 7.99 | N27: 0.54 | O27: 0.84
K28: Jul | L28: 0.53 | M28: 5.12 | N28: 0.53 | O28: 0.65
K29: Aug | L29: 0.74 | M29: 9.47 | N29: 0.65 | O29: 0.93
K30: Sep | L30: 0.81 | M30: 1.92 | N30: 0.86 | O30: 0.86
K31: Oct | L31: 0.57 | M31: 8.63 | N31: 0.53 | O31: 0.99
K32: Nov | L32: 0.37 | M32: 7.42 | N32: 0.31 | O32: 0.53
K33: Dec | L33: 0.17 | M33: 2.88 | N33: 0.15 | O33: 0.49
K34: Annual | L34: =AVERAGE(L22:L33) -> 0.5833333333 | M34: =MAX(M22:M33) -> 14.18 | N34: =AVERAGE(N22:N33) -> 0.5575 | O34: =MAX(O22:O33) -> 1.84
J36: =+A6 -> 2023 | K36: mg/Nm3 | L36: Monthly 1/2 hourly mean | M36: Monthly 1/2 hourly maximum | N36: Monthly daily mean | O36: Monthly daily maximum
J37: A3 | K37: Jan
K38: Feb
K39: Mar
K40: Apr
K41: May
K42: Jun
K43: Jul
K44: Aug
K45: Sep
K46: Oct
K47: Nov
A48: Comments : | K48: Dec
K49: Annual | L49: =AVERAGE(L37:L48) ->  | M49: =MAX(M37:M48) -> 0 | N49: =AVERAGE(N37:N48) ->  | O49: =MAX(O37:O48) -> 0
J51: =+A6 -> 2023 | K51: mg/Nm3 | L51: Monthly 1/2 hourly mean | M51: Monthly 1/2 hourly maximum | N51: Monthly daily mean | O51: Monthly daily maximum
J52: A4 | K52: Jan
K53: Feb
K54: Mar
K55: Apr
K56: May
K57: Jun
K58: Jul
K59: Aug
K60: Sep
K61: Oct
K62: Nov
K63: Dec
K64: Annual | L64: =AVERAGE(L52:L63) ->  | M64: =MAX(M52:M63) -> 0 | N64: =AVERAGE(N52:N63) ->  | O64: =MAX(O52:O63) -> 0
J65: =+A6 -> 2023
J66: A5 | K66: mg/Nm3 | L66: Monthly 1/2 hourly mean | M66: Monthly 1/2 hourly maximum | N66: Monthly daily mean | O66: Monthly daily maximum
K67: Jan
K68: Feb
K69: Mar
K70: Apr
K71: May
K72: Jun
K73: Jul
K74: Aug
K75: Sep
K76: Oct
K77: Nov
K78: Dec
K79: Annual | L79: =AVERAGE(L67:L78) ->  | M79: =MAX(M67:M78) -> 0 | N79: =AVERAGE(N67:N78) ->  | O79: =MAX(O67:O78) -> 0

Sheet Particulates
A1: =+'Cover Page'!$B$29 -> Annual Performance Report 2023 | E1: =+'Cover Page'!$B$33 -> SELCHP
A3: Monitoring of Particulate matter emissions | D3: Whole Installation | G3: See Notes in Cell Q3 | J3: =+A3 -> Monitoring of Particulate matter emissions | N3: Per Combustion Line | Q3: Notes:
Q4: User to add logic to complete Whole installation, Table A5:G18. From the data in Per Combustion Line, Table J6:O79, subject to No. of lines installed
A5: mg/Nm3 | B5: 1/2 Hourly Reference Periods | E5: Daily Reference Periods
A6: =+'Cover Page'!C39 -> 2023 | B6: 1/2 hourly PM ELV | C6: Monthly 1/2 hourly mean | D6: Highest 1/2 hourly maximum | E6: Daily PM ELV* | F6: Monthly daily mean | G6: Highest daily maximum | J6: =+A6 -> 2023 | K6: mg/Nm3 | L6: Monthly 1/2 hourly mean | M6: Monthly 1/2 hourly maximum | N6: Monthly daily mean | O6: Monthly daily maximum
A7: Jan | B7: 30 | C7: 1.49 | D7: 10.02 | E7: 10 | F7: 1.49 | G7: 2.16 | J7: A1 | K7: Jan | L7: 1.64 | M7: 4.39 | N7: 1.66 | O7: 2.16
A8: Feb | B8: 30 | C8: 1.62 | D8: 7.42 | E8: 10 | F8: 1.62 | G8: 3.55 | K8: Feb | L8: 2.33 | M8: 6.6 | N8: 2.33 | O8: 3.55
A9: Mar | B9: 30 | C9: 1.63 | D9: 7.84 | E9: 10 | F9: 1.61 | G9: 3.34 | K9: Mar | L9: 2.25 | M9: 7.84 | N9: 2.27 | O9: 3.34 | Q9: Whole Installation table A5:G18:
A10: Apr | B10: 30 | C10: 1.47 | D10: 7.64 | E10: 10 | F10: 1.49 | G10: 3.07 | K10: Apr | L10: 1.66 | M10: 7.64 | N10: 1.7 | O10: 3.07 | Q10: Mean: for 1/2 hourly and daily periods calculate mean of values across all operational combustion lines for the month
A11: May | B11: 30 | C11: 1.7 | D11: 9.42 | E11: 10 | F11: 1.7 | G11: 3.25 | K11: May | L11: 2.06 | M11: 9.42 | N11: 2.06 | O11: 3.25
A12: Jun | B12: 30 | C12: 1.73 | D12: 5.95 | E12: 10 | F12: 1.73 | G12: 2.84 | K12: Jun | L12: 2.1 | M12: 5.95 | N12: 2.12 | O12: 2.84
A13: Jul | B13: 30 | C13: 1.41 | D13: 7.25 | E13: 10 | F13: 1.41 | G13: 3.97 | K13: Jul | L13: 1.51 | M13: 6.2 | N13: 1.51 | O13: 3.97 | Q13: Maximum: for 1/2 hourly and daily periods use the highest value across all operational combustion lines for the month
A14: Aug | B14: 30 | C14: 2.25 | D14: 21.17 | E14: 10 | F14: 2.1 | G14: 3.8 | K14: Aug | L14: 2.06 | M14: 21.17 | N14: 1.88 | O14: 3.76
A15: Sep | B15: 30 | C15: 2.86 | D15: 7.13 | E15: 10 | F15: 2.97 | G15: 3.21 | K15: Sep | L15: 3.01 | M15: 5.61 | N15: 3 | O15: 3.21
A16: Oct | B16: 30 | C16: 1.21 | D16: 7.65 | E16: 10 | F16: 1.21 | G16: 1.57 | K16: Oct | L16: 1.06 | M16: 5.21 | N16: 1.06 | O16: 1.27
A17: Nov | B17: 30 | C17: 0.82 | D17: 6.91 | E17: 10 | F17: 0.79 | G17: 2.93 | K17: Nov | L17: 0.17 | M17: 4.86 | N17: 0.17 | O17: 2.93
A18: Dec | B18: 30 | C18: 1.5 | D18: 6.22 | E18: 10 | F18: 1.58 | G18: 2.29 | K18: Dec | L18: 1.24 | M18: 5.23 | N18: 1.4 | O18: 2.29
E19: * ELV reduced to 5 mg/Nm3 on 3 December 2023 | K19: Annual | L19: =AVERAGE(L7:L18) -> 1.7575 | M19: =MAX(M7:M18) -> 21.17 | N19: =AVERAGE(N7:N18) -> 1.763333333 | O19: =MAX(O7:O18) -> 3.97
J21: =+A6 -> 2023 | K21: mg/Nm3 | L21: Monthly 1/2 hourly mean | M21: Monthly 1/2 hourly maximum | N21: Monthly daily mean | O21: Monthly daily maximum
J22: A2 | K22: Jan | L22: 1.16 | M22: 10.02 | N22: 1.12 | O22: 1.58
K23: Feb | L23: 0.91 | M23: 7.42 | N23: 0.91 | O23: 1.04
K24: Mar | L24: 1.06 | M24: 4.92 | N24: 1.06 | O24: 1.18
K25: Apr | L25: 1.25 | M25: 4.61 | N25: 1.25 | O25: 1.48
K26: May | L26: 1.32 | M26: 6.33 | N26: 1.31 | O26: 1.91
K27: Jun | L27: 1.37 | M27: 4.66 | N27: 1.37 | O27: 2.04
K28: Jul | L28: 1.32 | M28: 7.25 | N28: 1.32 | O28: 1.7
K29: Aug | L29: 2.43 | M29: 16.43 | N29: 2.31 | O29: 3.8
K30: Sep | L30: 2.42 | M30: 7.13 | N30: 2.84 | O30: 2.84
K31: Oct | L31: 1.37 | M31: 7.65 | N31: 1.36 | O31: 1.57
K32: Nov | L32: 1.5 | M32: 6.91 | N32: 1.51 | O32: 1.87
K33: Dec | L33: 1.75 | M33: 6.22 | N33: 1.76 | O33: 2.21
K34: Annual | L34: =AVERAGE(L22:L33) -> 1.488333333 | M34: =MAX(M22:M33) -> 16.43 | N34: =AVERAGE(N22:N33) -> 1.51 | O34: =MAX(O22:O33) -> 3.8
J36: =+A6 -> 2023 | K36: mg/Nm3 | L36: Monthly 1/2 hourly mean | M36: Monthly 1/2 hourly maximum | N36: Monthly daily mean | O36: Monthly daily maximum
J37: A3 | K37: Jan
K38: Feb
K39: Mar
K40: Apr
K41: May
K42: Jun
K43: Jul
K44: Aug
K45: Sep
K46: Oct
K47: Nov
A48: Comments : | K48: Dec
K49: Annual | L49: =AVERAGE(L37:L48) ->  | M49: =MAX(M37:M48) -> 0 | N49: =AVERAGE(N37:N48) ->  | O49: =MAX(O37:O48) -> 0
J51: =+A6 -> 2023 | K51: mg/Nm3 | L51: Monthly 1/2 hourly mean | M51: Monthly 1/2 hourly maximum | N51: Monthly daily mean | O51: Monthly daily maximum
J52: A4 | K52: Jan
K53: Feb
K54: Mar
K55: Apr
K56: May
K57: Jun
K58: Jul
K59: Aug
K60: Sep
K61: Oct
K62: Nov
K63: Dec
K64: Annual | L64: =AVERAGE(L52:L63) ->  | M64: =MAX(M52:M63) -> 0 | N64: =AVERAGE(N52:N63) ->  | O64: =MAX(O52:O63) -> 0
J65: =+A6 -> 2023
J66: A5 | K66: mg/Nm3 | L66: Monthly 1/2 hourly mean | M66: Monthly 1/2 hourly maximum | N66: Monthly daily mean | O66: Monthly daily maximum
K67: Jan
K68: Feb
K69: Mar
K70: Apr
K71: May
K72: Jun
K73: Jul
K74: Aug
K75: Sep
K76: Oct
K77: Nov
K78: Dec
K79: Annual | L79: =AVERAGE(L67:L78) ->  | M79: =MAX(M67:M78) -> 0 | N79: =AVERAGE(N67:N78) ->  | O79: =MAX(O67:O78) -> 0

Sheet CO 0.5 hourly
A1: =+'Cover Page'!$B$29 -> Annual Performance Report 2023 | E1: =+'Cover Page'!$B$33 -> SELCHP
A3: Monitoring of Carbon Monoxide (half hourly) | D3: Whole Installation | G3: See Notes in Cell Q3 | J3: =+A3 -> Monitoring of Carbon Monoxide (half hourly) | N3: Per Combustion Line | Q3: Notes:
A5: Please complete this tab for your plant if you have 1/2 hourly CO ELVs; otherwise, leave it blank and complete the CO 95% 10 min tab
Q7: User to add logic to complete Whole installation, Table A5:G18. From the data in Per Combustion Line, Table J6:O79, subject to No. of lines installed
A8: mg/Nm3 | B8: 1/2 Hourly Reference Periods | E8: Daily Reference Periods
A9: =+'Cover Page'!C39 -> 2023 | B9: 1/2 hourly CO ELV | C9: Monthly 1/2 hourly mean | D9: Highest 1/2 hourly maximum | E9: Daily CO ELV | F9: Monthly daily mean | G9: Highest daily maximum | J9: =+A9 -> 2023 | K9: mg/Nm3 | L9: Monthly 1/2 hourly mean | M9: Monthly 1/2 hourly maximum | N9: Monthly daily mean | O9: Monthly daily maximum
A10: Jan | B10: 100 | E10: 50 | J10: A1 | K10: Jan
A11: Feb | B11: =+B10 -> 100 | E11: =+E10 -> 50 | K11: Feb
A12: Mar | B12: =+B11 -> 100 | E12: =+E11 -> 50 | K12: Mar | Q12: Whole Installation table A5:G18:
A13: Apr | B13: 100 | E13: 50 | K13: Apr | Q13: Mean: for 1/2 hourly and daily periods calculate mean of values across all operational combustion lines for the month
A14: May | B14: 100 | E14: 50 | K14: May
A15: Jun | B15: 100 | E15: 50 | K15: Jun
A16: Jul | B16: 100 | E16: 50 | K16: Jul | Q16: Maximum: for 1/2 hourly and daily periods use the highest value across all operational combustion lines for the month
A17: Aug | B17: 100 | E17: 50 | K17: Aug
A18: Sep | B18: 100 | E18: 50 | K18: Sep
A19: Oct | B19: 100 | E19: 50 | K19: Oct
A20: Nov | B20: 100 | E20: 50 | K20: Nov
A21: Dec | B21: 100 | E21: 50 | K21: Dec
K22: Annual | L22: =AVERAGE(L10:L21) ->  | M22: =MAX(M10:M21) -> 0 | N22: =AVERAGE(N10:N21) ->  | O22: =MAX(O10:O21) -> 0
J24: =+A9 -> 2023 | K24: mg/Nm3 | L24: Monthly 1/2 hourly mean | M24: Monthly 1/2 hourly maximum | N24: Monthly daily mean | O24: Monthly daily maximum
J25: A2 | K25: Jan
K26: Feb
K27: Mar
K28: Apr
K29: May
K30: Jun
K31: Jul
K32: Aug
K33: Sep
K34: Oct
K35: Nov
K36: Dec
K37: Annual | L37: =AVERAGE(L25:L36) ->  | M37: =MAX(M25:M36) -> 0 | N37: =AVERAGE(N25:N36) ->  | O37: =MAX(O25:O36) -> 0
J39: =+A9 -> 2023 | K39: mg/Nm3 | L39: Monthly 1/2 hourly mean | M39: Monthly 1/2 hourly maximum | N39: Monthly daily mean | O39: Monthly daily maximum
J40: A3 | K40: Jan
K41: Feb
K42: Mar
K43: Apr
K44: May
K45: Jun
K46: Jul
K47: Aug
K48: Sep
K49: Oct
K50: Nov
A51: Comments : | K51: Dec
K52: Annual | L52: =AVERAGE(L40:L51) ->  | M52: =MAX(M40:M51) -> 0 | N52: =AVERAGE(N40:N51) ->  | O52: =MAX(O40:O51) -> 0
J54: =+A9 -> 2023 | K54: mg/Nm3 | L54: Monthly 1/2 hourly mean | M54: Monthly 1/2 hourly maximum | N54: Monthly daily mean | O54: Monthly daily maximum
K55: Jan
K56: Feb
K57: Mar
K58: Apr
K59: May
K60: Jun
K61: Jul
K62: Aug
K63: Sep
K64: Oct
K65: Nov
K66: Dec
K67: Annual | L67: =AVERAGE(L55:L66) ->  | M67: =MAX(M55:M66) -> 0 | N67: =AVERAGE(N55:N66) ->  | O67: =MAX(O55:O66) -> 0
J68: =+A9 -> 2023
J69: A5 | K69: mg/Nm3 | L69: Monthly 1/2 hourly mean | M69: Monthly 1/2 hourly maximum | N69: Monthly daily mean | O69: Monthly daily maximum
K70: Jan
K71: Feb
K72: Mar
K73: Apr
K74: May
K75: Jun
K76: Jul
K77: Aug
K78: Sep
K79: Oct
K80: Nov
K81: Dec
K82: Annual | L82: =AVERAGE(L70:L81) ->  | M82: =MAX(M70:M81) -> 0 | N82: =AVERAGE(N70:N81) ->  | O82: =MAX(O70:O81) -> 0

Sheet CO 95% 10 min
A1: =+'Cover Page'!$B$29 -> Annual Performance Report 2023 | E1: =+'Cover Page'!$B$33 -> SELCHP
A3: Monitoring of Carbon Monoxide (10-minute avg) | E3: Whole Installation | H3: See Notes in Cell S3 | J3: =+A3 -> Monitoring of Carbon Monoxide (10-minute avg) | O3: Per Combustion Line | Q3: Notes: | S3: Notes:
A5: Please complete this tab for your plant if you have 10-minute average CO ELVs; otherwise, leave it blank and complete the CO 0.5 hourly tab
S7: User to add logic to complete Whole installation, Table A5:H18. From the data in Per Combustion Line, Table K6:Q79, subject to No. of lines installed
A8: mg/Nm3 | B8: 10-minute Reference Periods | F8: Daily Reference Periods
A9: =+'Cover Page'!C39 -> 2023 | B9: 95%ile 10-min avg CO ELV | C9: 95%ile 10-min avg maximum | D9: Monthly CO 10-min avg mean | E9: 10-min avg maximum | F9: Daily CO ELV | G9: Monthly daily mean | H9: Highest daily maximum | K9: =+A9 -> 2023 | L9: mg/Nm3 | M9: 95%ile 10-min avg maximum | N9: Monthly CO 10-min avg mean | O9: 10-min avg maximum | P9: Monthly daily mean | Q9: Monthly daily maximum
A10: Jan | B10: 150 | C10: 52.24 | D10: 6.3 | E10: 346.96 | F10: 50 | G10: 6.33 | H10: 10.03 | K10: A1 | L10: Jan | M10: 52.24 | N10: 5.7 | O10: 346.96 | P10: 5.79 | Q10: 10.03
A11: Feb | B11: =+B10 -> 150 | C11: 47.75 | D11: 6.69 | E11: 741.43 | F11: =+F10 -> 50 | G11: 6.69 | H11: 13.28 | L11: Feb | M11: 47.75 | N11: 6.91 | O11: 741.43 | P11: 6.92 | Q11: 13.28
A12: Mar | B12: =+B11 -> 150 | C12: 24.61 | D12: 5.72 | E12: 453.12 | F12: =+F11 -> 50 | G12: 5.72 | H12: 9.48 | L12: Mar | M12: 19 | N12: 4.68 | O12: 453.12 | P12: 4.6 | Q12: 7.13 | S12: Whole Installation table A5:H18:
A13: Apr | B13: 150 | C13: 23.2 | D13: 5.55 | E13: 407.07 | F13: 50 | G13: 5.54 | H13: 9.31 | L13: Apr | M13: 23.2 | N13: 5.12 | O13: 264.94 | P13: 5.22 | Q13: 9.31 | S13: Mean: for 10-min and daily periods use average of all operational combustion lines.
A14: May | B14: 150 | C14: 39.07 | D14: 5.96 | E14: 487.77 | F14: 50 | G14: 5.88 | H14: 10.25 | L14: May | M14: 39.07 | N14: 5.36 | O14: 265.58 | P14: 5.36 | Q14: 7.48
A15: Jun | B15: 150 | C15: 44.09 | D15: 6.36 | E15: 1293.65 | F15: 50 | G15: 6.41 | H15: 14.03 | L15: Jun | M15: 44.09 | N15: 6.84 | O15: 1293.65 | P15: 6.95 | Q15: 14.03
A16: Jul | B16: 150 | C16: 25.43 | D16: 6.37 | E16: 643.21 | F16: 50 | G16: 6.37 | H16: 13.67 | L16: Jul | M16: 25.43 | N16: 7.88 | O16: 643.21 | P16: 7.88 | Q16: 13.67 | S16: Maximum: for 10-min and daily periods use the highest of all operational combustion lines in any month.
A17: Aug | B17: 150 | C17: 46.59 | D17: 4.37 | E17: 659.88 | F17: 50 | G17: 4.3 | H17: 12.58 | L17: Aug | M17: 46.59 | N17: 7.01 | O17: 659.88 | P17: 7 | Q17: 12.58
A18: Sep | B18: 150 | C18: 11.8 | D18: 4.74 | E18: 311.6 | F18: 50 | G18: 4.96 | H18: 6.9 | L18: Sep | M18: 11.8 | N18: 5.51 | O18: 311.6 | P18: 5.53 | Q18: 6.9
A19: Oct | B19: 150 | C19: 89.01 | D19: 6.34 | E19: 841.38 | F19: 50 | G19: 5.75 | H19: 17.22 | L19: Oct | M19: 89.01 | N19: 7.51 | O19: 831.17 | P19: 6.59 | Q19: 17.22
A20: Nov | B20: 150 | C20: 28.61 | D20: 5.56 | E20: 1342.55 | F20: 50 | G20: 5.59 | H20: 14.94 | L20: Nov | M20: 28.61 | N20: 5.89 | O20: 1342.55 | P20: 5.89 | Q20: 14.94
A21: Dec | B21: 150 | C21: 37.45 | D21: 5.62 | E21: 495.33 | F21: 50 | G21: 5.65 | H21: 15.65 | L21: Dec | M21: 37.45 | N21: 6.73 | O21: 495.33 | P21: 6.76 | Q21: 15.65
L22: Annual | M22: =AVERAGE(M10:M21) -> 38.68666667 | O22: =MAX(O10:O21) -> 1342.55 | P22: =AVERAGE(P10:P21) -> 6.2075 | Q22: =MAX(Q10:Q21) -> 17.22
K24: =+A9 -> 2023 | L24: mg/Nm3 | M24: 95%ile 10-min avg maximum | N24: Monthly CO 10-min avg mean | O24: 10-min avg maximum | P24: Monthly daily mean | Q24: Monthly daily maximum
K25: A2 | L25: Jan | M25: 12.22 | N25: 7.55 | O25: 172.29 | P25: 7.5 | Q25: 8.93
L26: Feb | M26: 11.08 | N26: 6.46 | O26: 330.82 | P26: 6.46 | Q26: 8.35
L27: Mar | M27: 24.61 | N27: 6.66 | O27: 225.78 | P27: 6.67 | Q27: 9.48
L28: Apr | M28: 15.72 | N28: 6.04 | O28: 407.07 | P28: 5.91 | Q28: 9.12
L29: May | M29: 23.97 | N29: 6.6 | O29: 487.77 | P29: 6.45 | Q29: 10.25
L30: Jun | M30: 16 | N30: 5.9 | O30: 263.71 | P30: 5.9 | Q30: 8.82
L31: Jul | M31: 16.42 | N31: 4.87 | O31: 178.24 | P31: 4.87 | Q31: 7.61
L32: Aug | M32: 12.31 | N32: 1.78 | O32: 498.28 | P32: 1.61 | Q32: 10.52
L33: Sep | M33: 8.7 | N33: 2.59 | O33: 87.42 | P33: 2.71 | Q33: 2.71
L34: Oct | M34: 20.29 | N34: 5.13 | O34: 841.38 | P34: 4.85 | Q34: 10.16
L35: Nov | M35: 18.98 | N35: 5.21 | O35: 452.44 | P35: 5.25 | Q35: 10.6
L36: Dec | M36: 12.93 | N36: 4.5 | O36: 261.74 | P36: 4.45 | Q36: 6.99
L37: Annual | M37: =AVERAGE(M25:M36) -> 16.1025 | O37: =MAX(O25:O36) -> 841.38 | P37: =AVERAGE(P25:P36) -> 5.219166667 | Q37: =MAX(Q25:Q36) -> 10.6
K39: =+A9 -> 2023 | L39: mg/Nm3 | M39: 95%ile 10-min avg maximum | N39: Monthly CO 10-min avg mean | O39: 10-min avg maximum | P39: Monthly daily mean | Q39: Monthly daily maximum
K40: A3 | L40: Jan
L41: Feb
L42: Mar
L43: Apr
L44: May
L45: Jun
L46: Jul
L47: Aug
L48: Sep
L49: Oct
L50: Nov
A51: Comments : | L51: Dec
A52: Environment Agency explanatory note: The 10-minute average ELV is based on the “95th percentile”. In this case this means that 95% of the 10 minute averages in the relevant 24-hour period (i.e. 137) must be below 150 mg/Nm3, and 5% (i.e. 7) are allowed to be any value above 150 mg/Nm3. Whilst we expect operators to minimise CO emissions at all times, it is perfectly acceptable for the value of the maximum 10-minute average to be above 150 mg/Nm3, provided the 95th percentile ELV has been met for that period. | L52: Annual | M52: =AVERAGE(M40:M51) ->  | O52: =MAX(O40:O51) -> 0 | P52: =AVERAGE(P40:P51) ->  | Q52: =MAX(Q40:Q51) -> 0
K54: =+A9 -> 2023 | L54: mg/Nm3 | M54: 95%ile 10-min avg maximum | N54: Monthly CO 10-min avg mean | O54: 10-min avg maximum | P54: Monthly daily mean | Q54: Monthly daily maximum
K55: A4 | L55: Jan
L56: Feb
L57: Mar
L58: Apr
L59: May
L60: Jun
L61: Jul
L62: Aug
L63: Sep
L64: Oct
L65: Nov
L66: Dec
L67: Annual | M67: =AVERAGE(M55:M66) ->  | O67: =MAX(O55:O66) -> 0 | P67: =AVERAGE(P55:P66) ->  | Q67: =MAX(Q55:Q66) -> 0
K69: =+A9 -> 2023 | L69: mg/Nm3 | M69: 95%ile 10-min avg maximum | N69: Monthly CO 10-min avg mean | O69: 10-min avg maximum | P69: Monthly daily mean | Q69: Monthly daily maximum
K70: A5 | L70: Jan
L71: Feb
L72: Mar
L73: Apr
L74: May
L75: Jun
L76: Jul
L77: Aug
L78: Sep
L79: Oct
L80: Nov
L81: Dec
L82: Annual | M82: =AVERAGE(M70:M81) ->  | O82: =MAX(O70:O81) -> 0 | P82: =AVERAGE(P70:P81) ->  | Q82: =MAX(Q70:Q81) -> 0

Sheet NH3
A1: =+'Cover Page'!$B$29 -> Annual Performance Report 2023 | E1: =+'Cover Page'!$B$33 -> SELCHP
A3: Monitoring of Ammnonia emissions | D3: Whole Installation | G3: See Notes in Cell Q3 | J3: =+A3 -> Monitoring of Ammnonia emissions | N3: Per Combustion Line | Q3: Notes:
Q4: User to add logic to complete Whole installation, Table A5:G18. From the data in Per Combustion Line, Table J6:O79, subject to No. of lines installed
A5: mg/Nm3 | B5: 1/2 Hourly Reference Periods | E5: Daily Reference Periods
A6: =+'Cover Page'!C39 -> 2023 | B6: 1/2 hourly NH3 ELV | C6: Monthly 1/2 hourly mean | D6: Highest 1/2 hourly maximum | E6: Daily NH3 ELV* | F6: Monthly daily mean | G6: Highest daily maximum | J6: =+A6 -> 2023 | K6: mg/Nm3 | L6: Monthly 1/2 hourly mean | M6: Monthly 1/2 hourly maximum | N6: Monthly daily mean | O6: Monthly daily maximum
A7: Jan | B7: None | C7: 1.16 | D7: 11.65 | E7: None | F7: 1.14 | G7: 2.91 | J7: A1 | K7: Jan | L7: 0.57 | M7: 8.74 | N7: 0.57 | O7: 1.8
A8: Feb | B8: =+B7 -> None | C8: 2.02 | D8: 10.41 | E8: None | F8: 2.02 | G8: 5.38 | K8: Feb | L8: 0.34 | M8: 4.74 | N8: 0.34 | O8: 0.96
A9: Mar | B9: =+B8 -> None | C9: 2.23 | D9: 16.55 | E9: None | F9: 2.3 | G9: 7.67 | K9: Mar | L9: 0.05 | M9: 7.14 | N9: 0.03 | O9: 0.27 | Q9: Whole Installation table A5:G18:
A10: Apr | B10: None | C10: 1.98 | D10: 12.57 | E10: None | F10: 1.94 | G10: 5.3 | K10: Apr | L10: 0.26 | M10: 3.27 | N10: 0.23 | O10: 0.83 | Q10: Mean: for 1/2 hourly and daily periods calculate mean of values across all operational combustion lines for the month
A11: May | B11: None | C11: 2.41 | D11: 14.68 | E11: None | F11: 2.37 | G11: 5.96 | K11: May | L11: 0.52 | M11: 5.58 | N11: 0.52 | O11: 1.53
A12: Jun | B12: None | C12: 3.82 | D12: 18.68 | E12: None | F12: 3.84 | G12: 8.9 | K12: Jun | L12: 0.67 | M12: 7.79 | N12: 0.64 | O12: 1.58
A13: Jul | B13: None | C13: 3.72 | D13: 27.45 | E13: None | F13: 3.72 | G13: 9.35 | K13: Jul | L13: 1.49 | M13: 27.45 | N13: 1.5 | O13: 5.08 | Q13: Maximum: for 1/2 hourly and daily periods use the highest value across all operational combustion lines for the month
A14: Aug | B14: None | C14: 5.33 | D14: 18.64 | E14: None | F14: 5.31 | G14: 8.44 | K14: Aug | L14: 4.49 | M14: 13.47 | N14: 4.43 | O14: 6.06
A15: Sep | B15: None | C15: 7.01 | D15: 16.06 | E15: None | F15: 6.97 | G15: 7.73 | K15: Sep | L15: 6.76 | M15: 16.06 | N15: 6.78 | O15: 7.63
A16: Oct | B16: None | C16: 3.38 | D16: 20.95 | E16: None | F16: 3.33 | G16: 6.63 | K16: Oct | L16: 3.06 | M16: 20.27 | N16: 3.03 | O16: 5.05
A17: Nov | B17: None | C17: 5.43 | D17: 26.2 | E17: None | F17: 5.47 | G17: 9.17 | K17: Nov | L17: 6.76 | M17: 26.2 | N17: 6.76 | O17: 9.17
A18: Dec | B18: None | C18: 3.69 | D18: 20.15 | E18: 15 | F18: 3.66 | G18: 8.55 | K18: Dec | L18: 5.16 | M18: 20.15 | N18: 5.14 | O18: 8.55
E19: * ELV came into force on 3 December 2023 | K19: Annual | L19: =AVERAGE(L7:L18) -> 2.510833333 | M19: =MAX(M7:M18) -> 27.45 | N19: =AVERAGE(N7:N18) -> 2.4975 | O19: =MAX(O7:O18) -> 9.17
J21: =+A6 -> 2023 | K21: mg/Nm3 | L21: Monthly 1/2 hourly mean | M21: Monthly 1/2 hourly maximum | N21: Monthly daily mean | O21: Monthly daily maximum
J22: A2 | K22: Jan | L22: 2.4 | M22: 11.65 | N22: 2.36 | O22: 2.91
K23: Feb | L23: 3.7 | M23: 10.41 | N23: 3.7 | O23: 5.38
K24: Mar | L24: 4.2 | M24: 16.55 | N24: 4.21 | O24: 7.67
K25: Apr | L25: 3.91 | M25: 12.57 | N25: 3.89 | O25: 5.3
K26: May | L26: 4.43 | M26: 14.68 | N26: 4.41 | O26: 5.96
K27: Jun | L27: 6.86 | M27: 18.68 | N27: 6.82 | O27: 8.9
K28: Jul | L28: 5.95 | M28: 17.97 | N28: 5.95 | O28: 9.35
K29: Aug | L29: 6.16 | M29: 18.64 | N29: 6.19 | O29: 8.44
K30: Sep | L30: 7.73 | M30: 12.06 | N30: 7.73 | O30: 7.73
K31: Oct | L31: 3.72 | M31: 20.95 | N31: 3.65 | O31: 6.63
K32: Nov | L32: 4.03 | M32: 14.9 | N32: 3.99 | O32: 5.46
K33: Dec | L33: 2.19 | M33: 14.89 | N33: 2.14 | O33: 3.17
K34: Annual | L34: =AVERAGE(L22:L33) -> 4.606666667 | M34: =MAX(M22:M33) -> 20.95 | N34: =AVERAGE(N22:N33) -> 4.586666667 | O34: =MAX(O22:O33) -> 9.35
J36: =+A6 -> 2023 | K36: mg/Nm3 | L36: Monthly 1/2 hourly mean | M36: Monthly 1/2 hourly maximum | N36: Monthly daily mean | O36: Monthly daily maximum
J37: A3 | K37: Jan
K38: Feb
K39: Mar
K40: Apr
K41: May
K42: Jun
K43: Jul
K44: Aug
K45: Sep
K46: Oct
K47: Nov
A48: Comments : | K48: Dec
A49: An indicated ELV value of zero in the table above means that no ammonia limit is/was set in the permit. | K49: Annual | L49: =AVERAGE(L37:L48) ->  | M49: =MAX(M37:M48) -> 0 | N49: =AVERAGE(N37:N48) ->  | O49: =MAX(O37:O48) -> 0
J51: =+A6 -> 2023 | K51: mg/Nm3 | L51: Monthly 1/2 hourly mean | M51: Monthly 1/2 hourly maximum | N51: Monthly daily mean | O51: Monthly daily maximum
J52: A4 | K52: Jan
K53: Feb
K54: Mar
K55: Apr
K56: May
K57: Jun
K58: Jul
K59: Aug
K60: Sep
K61: Oct
K62: Nov
K63: Dec
K64: Annual | L64: =AVERAGE(L52:L63) ->  | M64: =MAX(M52:M63) -> 0 | N64: =AVERAGE(N52:N63) ->  | O64: =MAX(O52:O63) -> 0
J65: =+A6 -> 2023
J66: A5 | K66: mg/Nm3 | L66: Monthly 1/2 hourly mean | M66: Monthly 1/2 hourly maximum | N66: Monthly daily mean | O66: Monthly daily maximum
K67: Jan
K68: Feb
K69: Mar
K70: Apr
K71: May
K72: Jun
K73: Jul
K74: Aug
K75: Sep
K76: Oct
K77: Nov
K78: Dec
K79: Annual | L79: =AVERAGE(L67:L78) ->  | M79: =MAX(M67:M78) -> 0 | N79: =AVERAGE(N67:N78) ->  | O79: =MAX(O67:O78) -> 0
